{"text_format":"1","workbook":"xlsx","n_sheets":3,"sheets":["Analyse","data","Sheet5"],"not_rendered":{"charts":0,"images":0,"macros":1,"external_links":0,"defined_names":2,"comments":0,"pivot_tables":0},"unopened":[],"bounds":{"document_bytes":16777216,"sheet_cells":100000,"rows_first":2000,"rows_last":500,"rows_between":2000,"halvings":0,"cell_chars":16384,"cell_head_chars":4096},"cells_cut":0,"cells_raw":0,"read":"whole","date_system":"1900"}

{"sheet":"Analyse","index":0,"n_rows":100,"n_cols":7,"rows_kept":100,"cut":false,"hidden":false,"merged":[[6,2,6,6],[34,1,34,6]]}
[]
[]
[]
[null,"Tablet Vergelijker"]
[null,"Tip:klik hier voor de beste tablet deals (voordelig en betrouwbaar)"]
[]
[null,"www.firmfocus.biz","SELECTEER PRODUCTEN ONDER  =>"]
[null,"Kies rechts de tablet en zie specificaties ->","Apple iPad 4 16GB 4G","Apple iPad 2 3G 16GB","Samsung GALAXY NOTE 10 16GB 3G","Apple iPad 3 16GB 4G wit","Empire Electronix M712 4GB WiFi"]
[null,"Prijsinformatie",{"$f":"HLOOKUP($B9,data!$A$1:$AC$58,Analyse!C$33,FALSE)","v":"EUR 604 en EUR 764"},{"$f":"HLOOKUP($B9,data!$A$1:$AC$58,Analyse!D$33,FALSE)","v":"EUR 469 en EUR 631"},{"$f":"HLOOKUP($B9,data!$A$1:$AC$58,Analyse!E$33,FALSE)","v":"EUR 459 en EUR 619"},{"$f":"HLOOKUP($B9,data!$A$1:$AC$58,Analyse!F$33,FALSE)","v":"EUR 519 en EUR 629"},{"$f":"HLOOKUP($B9,data!$A$1:$AC$58,Analyse!G$33,FALSE)","v":"EUR 89 en EUR 102"}]
[null,"Partnumber",{"$f":"HLOOKUP($B10,data!$A$1:$AC$58,Analyse!C$33,FALSE)","v":"MD522NF/A"},{"$f":"HLOOKUP($B10,data!$A$1:$AC$58,Analyse!D$33,FALSE)","v":"MC982FD/A"},{"$f":"HLOOKUP($B10,data!$A$1:$AC$58,Analyse!E$33,FALSE)","v":"GT-N8000ZWADBT"},{"$f":"HLOOKUP($B10,data!$A$1:$AC$58,Analyse!F$33,FALSE)","v":"MD369NF/A"},{"$f":"HLOOKUP($B10,data!$A$1:$AC$58,Analyse!G$33,FALSE)","v":0}]
[null,"Afmetingen (H x B x D)",{"$f":"HLOOKUP($B11,data!$A$1:$AC$58,Analyse!C$33,FALSE)","v":"24,1 x 18,6 x 0,9 cm"},{"$f":"HLOOKUP($B11,data!$A$1:$AC$58,Analyse!D$33,FALSE)","v":"24,1 x 18,6 x 0,9 cm"},{"$f":"HLOOKUP($B11,data!$A$1:$AC$58,Analyse!E$33,FALSE)","v":"26,2 x 18,0 x 0,9 cm"},{"$f":"HLOOKUP($B11,data!$A$1:$AC$58,Analyse!F$33,FALSE)","v":"24,1 x 18,6 x 0,9 cm"},{"$f":"HLOOKUP($B11,data!$A$1:$AC$58,Analyse!G$33,FALSE)","v":"x x cm"}]
[null,"EAN",{"$f":"HLOOKUP($B12,data!$A$1:$AC$58,Analyse!C$33,FALSE)","v":885909657957},{"$f":"HLOOKUP($B12,data!$A$1:$AC$58,Analyse!D$33,FALSE)","v":8715319818872},{"$f":"HLOOKUP($B12,data!$A$1:$AC$58,Analyse!E$33,FALSE)","v":8806071977157},{"$f":"HLOOKUP($B12,data!$A$1:$AC$58,Analyse!F$33,FALSE)","v":885909571246},{"$f":"HLOOKUP($B12,data!$A$1:$AC$58,Analyse!G$33,FALSE)","v":8718226790071}]
[null,"Kleuren",{"$f":"HLOOKUP($B13,data!$A$1:$AC$58,Analyse!C$33,FALSE)","v":"zwart"},{"$f":"HLOOKUP($B13,data!$A$1:$AC$58,Analyse!D$33,FALSE)","v":"wit"},{"$f":"HLOOKUP($B13,data!$A$1:$AC$58,Analyse!E$33,FALSE)","v":"wit"},{"$f":"HLOOKUP($B13,data!$A$1:$AC$58,Analyse!F$33,FALSE)","v":"wit"},{"$f":"HLOOKUP($B13,data!$A$1:$AC$58,Analyse!G$33,FALSE)","v":0}]
[null,"Beeldscherm grootte",{"$f":"HLOOKUP($B14,data!$A$1:$AC$58,Analyse!C$33,FALSE)","v":9.6999999999999993},{"$f":"HLOOKUP($B14,data!$A$1:$AC$58,Analyse!D$33,FALSE)","v":9.6999999999999993},{"$f":"HLOOKUP($B14,data!$A$1:$AC$58,Analyse!E$33,FALSE)","v":10.1},{"$f":"HLOOKUP($B14,data!$A$1:$AC$58,Analyse!F$33,FALSE)","v":9.6999999999999993},{"$f":"HLOOKUP($B14,data!$A$1:$AC$58,Analyse!G$33,FALSE)","v":7}]
[null,"Beeldschermresolutie",{"$f":"HLOOKUP($B15,data!$A$1:$AC$58,Analyse!C$33,FALSE)","v":"2048 bij 1536"},{"$f":"HLOOKUP($B15,data!$A$1:$AC$58,Analyse!D$33,FALSE)","v":"1024 bij 768"},{"$f":"HLOOKUP($B15,data!$A$1:$AC$58,Analyse!E$33,FALSE)","v":"1280 bij 800"},{"$f":"HLOOKUP($B15,data!$A$1:$AC$58,Analyse!F$33,FALSE)","v":"2048 bij 1536"},{"$f":"HLOOKUP($B15,data!$A$1:$AC$58,Analyse!G$33,FALSE)","v":"800 bij 480"}]
[null,"HD",{"$f":"HLOOKUP($B16,data!$A$1:$AC$58,Analyse!C$33,FALSE)","v":"Full HD"},{"$f":"HLOOKUP($B16,data!$A$1:$AC$58,Analyse!D$33,FALSE)","v":"HD ready"},{"$f":"HLOOKUP($B16,data!$A$1:$AC$58,Analyse!E$33,FALSE)","v":0},{"$f":"HLOOKUP($B16,data!$A$1:$AC$58,Analyse!F$33,FALSE)","v":"Full HD"},{"$f":"HLOOKUP($B16,data!$A$1:$AC$58,Analyse!G$33,FALSE)","v":0}]
[null,"Resolutie webcam (Megapixels)",{"$f":"HLOOKUP($B17,data!$A$1:$AC$58,Analyse!C$33,FALSE)","v":"5 Megapixels"},{"$f":"HLOOKUP($B17,data!$A$1:$AC$58,Analyse!D$33,FALSE)","v":0},{"$f":"HLOOKUP($B17,data!$A$1:$AC$58,Analyse!E$33,FALSE)","v":"5,0 Megapixels"},{"$f":"HLOOKUP($B17,data!$A$1:$AC$58,Analyse!F$33,FALSE)","v":"5 Megapixels"},{"$f":"HLOOKUP($B17,data!$A$1:$AC$58,Analyse!G$33,FALSE)","v":0}]
[null,"Aansluitingen",{"$f":"HLOOKUP($B18,data!$A$1:$AC$58,Analyse!C$33,FALSE)","v":"Bluetooth, WiFi (802.11g), WiFi (802.11n)"},{"$f":"HLOOKUP($B18,data!$A$1:$AC$58,Analyse!D$33,FALSE)","v":"Bluetooth, Bluetooth met A2DP, hoofdtelefoon, WiFi (802.11g), WiFi (802.11n)"},{"$f":"HLOOKUP($B18,data!$A$1:$AC$58,Analyse!E$33,FALSE)","v":"Bluetooth, HDMI, hoofdtelefoon, WiFi (802.11g)"},{"$f":"HLOOKUP($B18,data!$A$1:$AC$58,Analyse!F$33,FALSE)","v":"Bluetooth, WiFi (802.11g), WiFi (802.11n)"},{"$f":"HLOOKUP($B18,data!$A$1:$AC$58,Analyse!G$33,FALSE)","v":"HDMI, hoofdtelefoon, USB 2.0, WiFi (802.11g)"}]
[null,"Totale opslagcapaciteit",{"$f":"HLOOKUP($B19,data!$A$1:$AC$58,Analyse!C$33,FALSE)","v":"16 GB"},{"$f":"HLOOKUP($B19,data!$A$1:$AC$58,Analyse!D$33,FALSE)","v":"16 GB"},{"$f":"HLOOKUP($B19,data!$A$1:$AC$58,Analyse!E$33,FALSE)","v":"16 GB"},{"$f":"HLOOKUP($B19,data!$A$1:$AC$58,Analyse!F$33,FALSE)","v":"16 GB"},{"$f":"HLOOKUP($B19,data!$A$1:$AC$58,Analyse!G$33,FALSE)","v":"4 GB"}]
[null,"Type opslag",{"$f":"HLOOKUP($B20,data!$A$1:$AC$58,Analyse!C$33,FALSE)","v":"Flash"},{"$f":"HLOOKUP($B20,data!$A$1:$AC$58,Analyse!D$33,FALSE)","v":"Flash"},{"$f":"HLOOKUP($B20,data!$A$1:$AC$58,Analyse!E$33,FALSE)","v":"Flash"},{"$f":"HLOOKUP($B20,data!$A$1:$AC$58,Analyse!F$33,FALSE)","v":"Flash"},{"$f":"HLOOKUP($B20,data!$A$1:$AC$58,Analyse!G$33,FALSE)","v":"Flash"}]
[null,"Intern geheugen",{"$f":"HLOOKUP($B21,data!$A$1:$AC$58,Analyse!C$33,FALSE)","v":0},{"$f":"HLOOKUP($B21,data!$A$1:$AC$58,Analyse!D$33,FALSE)","v":0},{"$f":"HLOOKUP($B21,data!$A$1:$AC$58,Analyse!E$33,FALSE)","v":0},{"$f":"HLOOKUP($B21,data!$A$1:$AC$58,Analyse!F$33,FALSE)","v":0},{"$f":"HLOOKUP($B21,data!$A$1:$AC$58,Analyse!G$33,FALSE)","v":"0,5 GB"}]
[null,"Geheugenkaarten",{"$f":"HLOOKUP($B22,data!$A$1:$AC$58,Analyse!C$33,FALSE)","v":0},{"$f":"HLOOKUP($B22,data!$A$1:$AC$58,Analyse!D$33,FALSE)","v":0},{"$f":"HLOOKUP($B22,data!$A$1:$AC$58,Analyse!E$33,FALSE)","v":0},{"$f":"HLOOKUP($B22,data!$A$1:$AC$58,Analyse!F$33,FALSE)","v":0},{"$f":"HLOOKUP($B22,data!$A$1:$AC$58,Analyse!G$33,FALSE)","v":"Micro-SD"}]
[null,"Accu",{"$f":"HLOOKUP($B23,data!$A$1:$AC$58,Analyse!C$33,FALSE)","v":"Lithium-Polymeer"},{"$f":"HLOOKUP($B23,data!$A$1:$AC$58,Analyse!D$33,FALSE)","v":"Lithium-Polymeer"},{"$f":"HLOOKUP($B23,data!$A$1:$AC$58,Analyse!E$33,FALSE)","v":0},{"$f":"HLOOKUP($B23,data!$A$1:$AC$58,Analyse!F$33,FALSE)","v":"Lithium-Polymeer"},{"$f":"HLOOKUP($B23,data!$A$1:$AC$58,Analyse!G$33,FALSE)","v":"Lithium-Ion"}]
[null,"Vermogen accu",{"$f":"HLOOKUP($B24,data!$A$1:$AC$58,Analyse!C$33,FALSE)","v":"42,5 Wh"},{"$f":"HLOOKUP($B24,data!$A$1:$AC$58,Analyse!D$33,FALSE)","v":"25 Wh"},{"$f":"HLOOKUP($B24,data!$A$1:$AC$58,Analyse!E$33,FALSE)","v":0},{"$f":"HLOOKUP($B24,data!$A$1:$AC$58,Analyse!F$33,FALSE)","v":"42,5 Wh"},{"$f":"HLOOKUP($B24,data!$A$1:$AC$58,Analyse!G$33,FALSE)","v":0}]
[null,"Capaciteit accu",{"$f":"HLOOKUP($B25,data!$A$1:$AC$58,Analyse!C$33,FALSE)","v":0},{"$f":"HLOOKUP($B25,data!$A$1:$AC$58,Analyse!D$33,FALSE)","v":0},{"$f":"HLOOKUP($B25,data!$A$1:$AC$58,Analyse!E$33,FALSE)","v":"7000 mAh"},{"$f":"HLOOKUP($B25,data!$A$1:$AC$58,Analyse!F$33,FALSE)","v":0},{"$f":"HLOOKUP($B25,data!$A$1:$AC$58,Analyse!G$33,FALSE)","v":"2500 mAh"}]
[null,"Video-afspeeltijd",{"$f":"HLOOKUP($B26,data!$A$1:$AC$58,Analyse!C$33,FALSE)","v":0},{"$f":"HLOOKUP($B26,data!$A$1:$AC$58,Analyse!D$33,FALSE)","v":"10 uur"},{"$f":"HLOOKUP($B26,data!$A$1:$AC$58,Analyse!E$33,FALSE)","v":0},{"$f":"HLOOKUP($B26,data!$A$1:$AC$58,Analyse!F$33,FALSE)","v":0},{"$f":"HLOOKUP($B26,data!$A$1:$AC$58,Analyse!G$33,FALSE)","v":0}]
[null,"Levensduur accu (max.)",{"$f":"HLOOKUP($B27,data!$A$1:$AC$58,Analyse!C$33,FALSE)","v":"10 uur"},{"$f":"HLOOKUP($B27,data!$A$1:$AC$58,Analyse!D$33,FALSE)","v":0},{"$f":"HLOOKUP($B27,data!$A$1:$AC$58,Analyse!E$33,FALSE)","v":"1500,0 uur"},{"$f":"HLOOKUP($B27,data!$A$1:$AC$58,Analyse!F$33,FALSE)","v":"10 uur"},{"$f":"HLOOKUP($B27,data!$A$1:$AC$58,Analyse!G$33,FALSE)","v":0}]
[null,"Besturingssysteem",{"$f":"HLOOKUP($B28,data!$A$1:$AC$58,Analyse!C$33,FALSE)","v":"iOS"},{"$f":"HLOOKUP($B28,data!$A$1:$AC$58,Analyse!D$33,FALSE)","v":"iOS"},{"$f":"HLOOKUP($B28,data!$A$1:$AC$58,Analyse!E$33,FALSE)","v":"Android"},{"$f":"HLOOKUP($B28,data!$A$1:$AC$58,Analyse!F$33,FALSE)","v":"iOS"},{"$f":"HLOOKUP($B28,data!$A$1:$AC$58,Analyse!G$33,FALSE)","v":"Android"}]
[null,"Toevoeging besturingssysteem",{"$f":"HLOOKUP($B29,data!$A$1:$AC$58,Analyse!C$33,FALSE)","v":0},{"$f":"HLOOKUP($B29,data!$A$1:$AC$58,Analyse!D$33,FALSE)","v":"iOS 4.3"},{"$f":"HLOOKUP($B29,data!$A$1:$AC$58,Analyse!E$33,FALSE)","v":"4.0"},{"$f":"HLOOKUP($B29,data!$A$1:$AC$58,Analyse!F$33,FALSE)","v":"5.1"},{"$f":"HLOOKUP($B29,data!$A$1:$AC$58,Analyse!G$33,FALSE)","v":"4.0"}]
[null,"Processor",{"$f":"HLOOKUP($B30,data!$A$1:$AC$58,Analyse!C$33,FALSE)","v":"Dual Core A6X quad-core graphics"},{"$f":"HLOOKUP($B30,data!$A$1:$AC$58,Analyse!D$33,FALSE)","v":"Dual-Core"},{"$f":"HLOOKUP($B30,data!$A$1:$AC$58,Analyse!E$33,FALSE)","v":0},{"$f":"HLOOKUP($B30,data!$A$1:$AC$58,Analyse!F$33,FALSE)","v":"Dual Core A5X"},{"$f":"HLOOKUP($B30,data!$A$1:$AC$58,Analyse!G$33,FALSE)","v":"Cortex A8"}]
[null,"Kloksnelheid",{"$f":"HLOOKUP($B31,data!$A$1:$AC$58,Analyse!C$33,FALSE)","v":0},{"$f":"HLOOKUP($B31,data!$A$1:$AC$58,Analyse!D$33,FALSE)","v":"1 GHz"},{"$f":"HLOOKUP($B31,data!$A$1:$AC$58,Analyse!E$33,FALSE)","v":"1,4 GHz"},{"$f":"HLOOKUP($B31,data!$A$1:$AC$58,Analyse!F$33,FALSE)","v":0},{"$f":"HLOOKUP($B31,data!$A$1:$AC$58,Analyse!G$33,FALSE)","v":"1,2 GHz"}]
[null,"Gewicht",{"$f":"HLOOKUP($B32,data!$A$1:$AC$58,Analyse!C$33,FALSE)","v":"662 gram"},{"$f":"HLOOKUP($B32,data!$A$1:$AC$58,Analyse!D$33,FALSE)","v":"613 gram"},{"$f":"HLOOKUP($B32,data!$A$1:$AC$58,Analyse!E$33,FALSE)","v":"600 gram"},{"$f":"HLOOKUP($B32,data!$A$1:$AC$58,Analyse!F$33,FALSE)","v":"662 gram"},{"$f":"HLOOKUP($B32,data!$A$1:$AC$58,Analyse!G$33,FALSE)","v":0}]
[null,"row",{"$f":"VLOOKUP(C8,data!$A$2:$B$58,2,FALSE)","v":52},{"$f":"VLOOKUP(D8,data!$A$2:$B$58,2,FALSE)","v":48},{"$f":"VLOOKUP(E8,data!$A$2:$B$58,2,FALSE)","v":45},{"$f":"VLOOKUP(F8,data!$A$2:$B$58,2,FALSE)","v":41},{"$f":"VLOOKUP(G8,data!$A$2:$B$58,2,FALSE)","v":38}]
[]
[null,"Disclaimer: U kunt geen rechten ontlenen aan de verstrekte informatie! Door het gebruik van deze tool, verklaart u zich hiermee akkoord."]
[]
[]
[]
[]
[]
[]
[]
[]
[]
[]
[]
[]
[]
[]
[]
[]
[]
[]
[]
[]
[]
[]
[]
[]
[]
[]
[]
[]
[]
[]
[]
[]
[]
[]
[]
[]
[]
[]
[]
[]
[]
[]
[]
[]
[]
[]
[]
[]
[]
[]
[]
[]
[]
[]
[]
[]
[]
[]
[]
[]
[]
[]
[]
[null,null,{"$f":"SUBSTITUTE(SUBSTITUTE(C8,\" \",\"-\"),\".\",\"_\")","v":"Apple-iPad-4-16GB-4G"}]
[null,null,{"$f":"\"C:\\Users\\Firmfocus\\Documents\\WEBSITES\\Firmfocus\\NL\\documenten\\reviews\\tablets\\tablet-analyse\\\"&C8","v":"C:\\Users\\Firmfocus\\Documents\\WEBSITES\\Firmfocus\\NL\\documenten\\reviews\\tablets\\tablet-analyse\\Apple iPad 4 16GB 4G"}]

{"sheet":"data","index":1,"n_rows":58,"n_cols":29,"rows_kept":58,"cut":false,"hidden":true,"merged":[]}
["Product","row","Prijsinformatie","Partnumber","Afmetingen (H x B x D)","EAN","Kleuren","Beeldscherm grootte","Beeldschermresolutie","HD","Resolutie webcam (Megapixels)","Resolutie webcam","Mobiel","Simkaart ondersteuning","Aansluitingen","Totale opslagcapaciteit","Type opslag","Intern geheugen","Geheugenkaarten","Accu","Vermogen accu","Capaciteit accu","Video-afspeeltijd","Levensduur accu (max.)","Besturingssysteem","Toevoeging besturingssysteem","Processor","Kloksnelheid","Gewicht"]
["Samsung Galaxy Note 10.1",2,"EUR 444 en EUR 556","GT-N8010EAAPHN","26,2 x 18,0 x 0,9 cm",8806071992846,"grijs",10.1,"1280 bij 800",null,"5,0 Megapixels",null,null,null,"Bluetooth, HDMI, hoofdtelefoon, WiFi (802.11g)","16 GB","Flash","2 GB",1,null,null,null,null,"1500,0 uur",null,null,null,"1,4 GHz","597 gram"]
["Apple iPad 2 16GB zwart",3,"EUR 376 en EUR 456","MC769LL/A","24,1 x 18,6 x 0,9 cm",8715319818803,"zwart",9.6999999999999993,"1024 bij 768","HD ready",null,null,null,null,"Bluetooth, Bluetooth met A2DP, hoofdtelefoon, WiFi (802.11g), WiFi (802.11n)","16 GB","Flash",null,null,"Lithium-Polymeer","25 Wh",null,"10 uur",null,"iOS","iOS 4.3","Dual-Core","1 GHz","601 gram"]
["Apple iPad mini 16GB WiFi zwart",4,"EUR 327 en EUR 402","MD528NF/A","20 x 13,5 x 0,7 cm",885909666898,"zwart",7.9,"1024 bij 768","HD ready","5 Megapixels",null,null,null,"Bluetooth, hoofdtelefoon, WiFi (802.11g), WiFi (802.11n)","16 GB",null,null,null,"Lithium-Polymeer","16,3 Wh",null,null,"10 uur","iOS",null,"Apple A5 Cortex A9 dual-core",null,"308 gram"]
["Apple iPad 3 16GB wit",5,"EUR 444 en EUR 530","MD328NF/A","24,1 x 18,6 x 0,9 cm",885909550319,"wit",9.6999999999999993,"2048 bij 1536","Full HD","5 Megapixels",null,null,null,"Bluetooth, WiFi (802.11g), WiFi (802.11n)","16 GB","Flash",null,null,"Lithium-Polymeer","42,5 Wh",null,null,"10 uur","iOS","5.1","Dual Core A5X",null,"652 gram"]
["Apple iPad 3 32GB zwart",6,"EUR 477 en EUR 589","MC706NF/A","24,1 x 18,6 x 0,9 cm",885909549696,"zwart",9.6999999999999993,"2048 bij 1536","Full HD","5 Megapixels",null,null,null,"Bluetooth, WiFi (802.11g), WiFi (802.11n)","32 GB","Flash",null,null,"Lithium-Polymeer","42,5 Wh",null,null,"10 uur","iOS","5.1","Dual Core A5X",null,"652 gram"]
["Apple iPad 4 16GB WiFi zwart",7,"EUR 478 en EUR 603","MD510NF/A","24,1 x 18,6 x 0,9 cm",885909652266,"zwart",9.6999999999999993,"2048 bij 1536","Full HD","5 Megapixels",null,null,null,"Bluetooth, WiFi (802.11g), WiFi (802.11n)","16 GB","Flash",null,null,"Lithium-Polymeer","42,5 Wh",null,null,"10 uur","iOS",null,"Dual Core A6X quad-core graphics",null,"652 gram"]
["Asus Google Nexus 7 32GB",8,"EUR 244 en EUR 249","90OK0MI1101080U","19,9 x 12 x 1 cm",4716659343271,null,7,"1280 bij 800",null,"1,2 Megapixels",null,null,null,"WiFi (802.11g), WiFi (802.11n)","32 GB","Flash",null,null,null,null,"4325 mAh","9 uur",null,"Android","4.1 JellyBean","Quad-core Tegra 3","1,3 GHz","340 gram"]
["Samsung Galaxy Tab P3110",9,"EUR 209 en EUR 281","GT-P3110TSAPHN","12,1 x 19,4 x 1,1 cm",8806085112216,"zilver, titanium",7,"1024 bij 600",null,"0,3 Megapixels","640 x 480",null,null,"Bluetooth, hoofdtelefoon, USB 2.0, WiFi (802.11g), WiFi (802.11n)","8 GB","Flash","1 GB","Micro-SD",null,null,null,null,null,"Android","4.0",null,"1 GHz"]
["Apple iPad 4 32GB WiFi zwart",10,"EUR 574 en EUR 724","MD511NF/A","24,1 x 18,6 x 0,9 cm",885909652532,"zwart",9.6999999999999993,"2048 bij 1536","Full HD","5 Megapixels",null,null,null,"Bluetooth, WiFi (802.11g), WiFi (802.11n)","32 GB","Flash",null,null,"Lithium-Polymeer","42,5 Wh",null,null,"10 uur","iOS",null,"Dual Core A6X quad-core graphics",null,"652 gram"]
["Asus Transformer Pad TF300T 32GB ex dock",11,"EUR 350 en EUR 462","TF300T-1A124A","26,3 x 18 x 1 cm",4716659194149,"wit",10.1,"1280 bij 800",null,"8 Megapixels",null,null,null,"Bluetooth, HDMI, hoofdtelefoon, WiFi (802.11g), WiFi (802.11n)","32 GB","SSD","1 GB","Micro-SD, Micro-SDHC","Lithium-Polymeer","22 Wh",null,null,"10 uur","Android","4.0","nVidia Tegra 3","1,2 GHz","635 gram"]
["Samsung Galaxy Note 10.1 16GB wiFi",12,"EUR 439 en EUR 499","GT-N8010ZWAPHN","18 x 26,2 x 0,9 cm",8806085260368,"wit",10.1,"1280 bij 800",null,"5 Megapixels",null,null,null,"Bluetooth, USB 2.0, WiFi (802.11g), WiFi (802.11n)","16 GB","SSD",null,null,null,null,null,null,null,"Android","Google Android 4.0",null,null,"600 gram"]
["Samsung Galaxy Tab 2 P5100 16GB",13,"EUR 395 en EUR 521","GT-P5100TSAPHN","17,5 x 25,7 x 1 cm",8806085012097,"zwart",10.1,"1280 bij 800",null,"3 Megapixels",null,"HSDPA (3.5G)",null,"hoofdtelefoon, USB 2.0, WiFi (802.11g), WiFi (802.11n)","16 GB","Flash","1 GB","Micro-SD","Lithium-Ion",null,"7000 mAh",null,null,"Android","4.0",null,"1 GHz","583 gram"]
["Apple iPad 3 32GB wit",14,"EUR 494 en EUR 589","MD329NF/A","24,1 x 18,6 x 0,9 cm",885909550630,"wit",9.6999999999999993,"2048 bij 1536","Full HD","5 Megapixels",null,null,null,"Bluetooth, WiFi (802.11g), WiFi (802.11n)","32 GB","Flash",null,null,"Lithium-Polymeer","42,5 Wh",null,null,"10 uur","iOS","5.1","Dual Core A5X",null,"652 gram"]
["Asus Transformer Pad Infinity 64GB",15,"EUR 664 en EUR 725","TF700T-1B086A","18,1 x 26,3 x 2 cm",4716659195504,"grijs",10.1,"1920 bij 1200",null,"8 Megapixels",null,null,null,"Bluetooth, HDMI, USB 2.0, WiFi (802.11g), WiFi (802.11n)","64 GB",null,"1 GB","Micro-SD, Micro-SDHC",null,"44,5 Wh",null,null,"14 uur","Android","4.0","nVidia Tegra 3","1,6 GHz","1123 gram"]
["Samsung Galaxy Tab 2 P5110 16 GB Wit",16,"EUR 299 en EUR 409","GT-P5110ZWAPHN","17,5 x 25,7 x 1 cm",8806085140073,"wit",10.1,"1280 bij 800",null,"3 Megapixels",null,null,null,"Bluetooth, hoofdtelefoon, USB 2.0, WiFi (802.11g), WiFi (802.11n)","16 GB","Flash","1 GB","Micro-SD","Lithium-Ion",null,"7000 mAh",null,null,"Android","4.0",null,"1 GHz","581 gram"]
["Apple iPad mini 16GB WiFi wit",17,"EUR 327 en EUR 402","MD531NF/A","20 x 13,5 x 0,7 cm",885909667581,"wit, zilver",7.9,"1024 bij 768","HD ready","5 Megapixels",null,null,null,"Bluetooth, hoofdtelefoon, WiFi (802.11g), WiFi (802.11n)","16 GB",null,null,null,"Lithium-Polymeer","16,3 Wh",null,null,"10 uur","iOS",null,"Apple A5 Cortex A9 dual-core",null,"308 gram"]
["Apple iPad 3 16GB zwart",18,"EUR 448 en EUR 546","MC705NF/A","24,1 x 18,6 x 0,9 cm",885909549382,"zwart",9.6999999999999993,"2048 bij 1536","Full HD","5 Megapixels",null,null,null,"Bluetooth, WiFi (802.11g), WiFi (802.11n)","16 GB","Flash",null,null,"Lithium-Polymeer","42,5 Wh",null,null,"10 uur","iOS","5.1","Dual Core A5X",null,"652 gram"]
["Samsung Galaxy Tab 2 10.1 16GB WiFi",19,"EUR 313 en EUR 349","GT-P5110TSA","17,5 x 25,7 x 1,0 cm",8806085009332,"zilver",10.1,"1280 bij 800",null,"3,2 Megapixels","2048 x 1536","UMTS (3G), nee",null,"Bluetooth, hoofdtelefoon, USB 2.0, WiFi (802.11g)","16 GB","Flash",null,"Micro-SD, ja",null,null,"4000 mAh",null,"9,0 uur",null,null,null,"1,0 GHz","583 gram"]
["Asus Transformer Pad TF300T 32GB incl dock",20,"EUR 450 en EUR 509","TF300T-1A125A","26,3 x 18 x 1 cm",4716659194200,"wit",10.1,"1280 bij 800",null,"8 Megapixels",null,null,null,"Bluetooth, HDMI, hoofdtelefoon, USB 2.0, WiFi (802.11g), WiFi (802.11n)","32 GB","SSD","1 GB","Micro-SD, Micro-SDHC, SD","Lithium-Polymeer","22 Wh",null,null,"15 uur","Android","4.0","nVidia Tegra 3","1,2 GHz","1181 gram"]
["Apple iPad 2 16GB wit",21,"EUR 376 en EUR 485","MC979LL/A","24,1 x 18,6 x 0,9 cm",8715319818810,"wit",9.6999999999999993,"1024 bij 768","HD ready",null,null,null,null,"Bluetooth, Bluetooth met A2DP, hoofdtelefoon, WiFi (802.11g), WiFi (802.11n)","16 GB","Flash",null,null,"Lithium-Polymeer","25 Wh",null,"10 uur",null,"iOS","iOS 4.3","Dual-Core","1 GHz","601 gram"]
["Sony Tablet S",22,"EUR 269 en EUR 480","SGPT111NL/S.NL3","17,4 x 24,1 x 1 cm",4905524798364,"zwart",9.4,"1280 bij 800","HD ready",null,"2592 x 1944",null,null,"Bluetooth, hoofdtelefoon, USB 2.0, WiFi (802.11g), WiFi (802.11n)","16 GB","Flash","1 GB","SD","Lithium-Ion",null,null,"8 uur",null,"Android","Honeycomb 3.1",null,"1 GHz","598 gram"]
["Samsung Galaxy Note 10.1 16GB 3G",23,"EUR 542 en EUR 705","GT-N8000EAAPHN","18 x 26,2 x 0,9 cm",8806085006928,"zwart",10.1,"1280 bij 800",null,"5 Megapixels",null,"HSDPA (3.5G)",null,"Bluetooth, USB 2.0, WiFi (802.11g), WiFi (802.11n)","16 GB","SSD",null,null,null,null,null,null,null,"Android","Google Android 4.0",null,null,"600 gram"]
["Archos 70 internet tablet 8GB",24,99,501582,"20,1 x 11,4 x 1 cm",690590515826,"zwart",7,"800 bij 480","HD ready",null,null,null,null,"Bluetooth, HDMI, USB 2.0, WiFi (802.11g), WiFi (802.11n)","8 GB","Flash",null,"Micro-SD, SDHC","Lithium-Polymeer",null,null,"10 uur",null,"Android","2.2 Froyo","ARM Cortex A8 with DSP","1 GHz","300 gram"]
["Apple iPad 4 16GB WiFi wit",25,"EUR 478 en EUR 603","MD513NF/A","24,1 x 18,6 x 0,9 cm",885909653065,"wit",9.6999999999999993,"2048 bij 1536","Full HD","5 Megapixels",null,null,null,"Bluetooth, WiFi (802.11g), WiFi (802.11n)","16 GB","Flash",null,null,"Lithium-Polymeer","42,5 Wh",null,null,"10 uur","iOS",null,"Dual Core A6X quad-core graphics",null,"652 gram"]
["Asus Vivo Tab TF600T 64GB incl dock",26,"EUR 699 en EUR 829","90OK0NB1100700Y","x x 0,9 cm",null,"grijs",11.6,"1366 bij 768",null,"8 Megapixels",null,null,null,null,"64 GB",null,"2 GB",null,null,null,null,null,null,"Windows 8",null,null,null,"675 gram"]
["Apple iPad 4 64GB WiFi",27,"EUR 668 en EUR 845","MD512NF/A","24,1 x 18,6 x 0,9 cm",885909652808,"zwart",9.6999999999999993,"2048 bij 1536","Full HD","5 Megapixels",null,null,null,"Bluetooth, WiFi (802.11g), WiFi (802.11n)","64 GB","Flash",null,null,"Lithium-Polymeer","42,5 Wh",null,null,"10 uur","iOS",null,"Dual Core A6X quad-core graphics",null,"652 gram"]
["Samsung Galaxy Tab 2 P5110 16 GB",28,"EUR 299 en EUR 409","GT-P5110TSAPHN","17,5 x 25,7 x 1 cm",8806085012127,"zwart",10.1,"1280 bij 800",null,"3 Megapixels",null,null,null,"Bluetooth, hoofdtelefoon, USB 2.0, WiFi (802.11g), WiFi (802.11n)","16 GB","Flash","1 GB","Micro-SD, Micro-SDHC, Micro-SDXC","Lithium-Ion",null,"7000 mAh",null,null,"Android","4.0",null,"1 GHz","588 gram"]
["Yarvik TAB464 GoTab Xerios 10 inch",29,"EUR 149 en EUR 182","TAB464","16,4 x 26,3 x 1,4 cm",8717534018013,"zwart",10,"1024 bij 600",null,null,null,null,null,"HDMI, hoofdtelefoon, USB 2.0, WiFi (802.11g)","8 GB","Flash",null,"Micro-SD, ja","Lithium-Polymeer",null,"7000 mAh",null,"8,0 uur","Android",null,"ARM Cortex-A","1,2 GHz","682 gram"]
["Yarvik tab9-200 Xenta 9.7",30,"EUR 232 en EUR 259","TAB9-200","19,1 x 24,4 x 1 cm",8717534018471,"zilver",9.6999999999999993,"1024 bij 768",null,"2 Megapixels",null,null,null,"Bluetooth, HDMI, hoofdtelefoon, WiFi (802.11g)","16 GB","Flash",null,"Micro-SD, ja",null,null,"8000 mAh","6 uur",null,"Android",null,"ARM Cortex-A","1,6 GHz","638 gram"]
["Samsung Galaxy Tab 2 P5110 16 GB Zwart",31,"EUR 299 en EUR 409","GT-P5110TSAPHN","17,5 x 25,7 x 1 cm",8806085012127,"zwart",10.1,"1280 bij 800",null,"3 Megapixels",null,null,null,"Bluetooth, hoofdtelefoon, USB 2.0, WiFi (802.11g), WiFi (802.11n)","16 GB","Flash","1 GB","Micro-SD, Micro-SDHC, Micro-SDXC","Lithium-Ion",null,"7000 mAh",null,null,"Android","4.0",null,"1 GHz","588 gram"]
["Apple iPad 3 16GB 4G zwart",32,"EUR 521 en EUR 651","MD366NF/A","24,1 x 18,6 x 0,9 cm",885909570348,"zwart",9.6999999999999993,"2048 bij 1536","Full HD","5 Megapixels",null,"UMTS (3G), HSDPA (3.5G), GSM, EDGE (2.75G), HSUPA (3.75G)",null,"Bluetooth, WiFi (802.11g), WiFi (802.11n)","16 GB","Flash",null,null,"Lithium-Polymeer","42,5 Wh",null,null,"10 uur","iOS"]
["Asus Eee Pad Transformer TF101 16GB",33,"EUR 300 en EUR 368","TF101-1B033A","17,1 x 27,1 x 1,3 cm",4719543380499,"zwart",10.1,"1280 bij 800","HD ready",null,"1280 x 960",null,null,"Bluetooth, HDMI, hoofdtelefoon, WiFi (802.11g), WiFi (802.11n)","16 GB","Flash","1 GB","Micro-SD","Lithium-Polymeer","24,4 Wh",null,"9,5 uur",null,"Android","3.0","nVidia Tegra 2","1 GHz","680 gram"]
["Apple iPad 4 32GB WiFi wit",34,"EUR 575 en EUR 725","MD514NF/A","24,1 x 18,6 x 0,9 cm",885909653331,"wit",9.6999999999999993,"2048 bij 1536","Full HD","5 Megapixels",null,null,null,"Bluetooth, hoofdtelefoon, WiFi (802.11g), WiFi (802.11n)","32 GB","Flash",null,null,"Lithium-Polymeer","42,5 Wh",null,null,"10,0 uur","iOS",null,"Dual Core A6X quad-core graphics",null,"652 gram"]
["Apple iPad 3 32GB 4G",35,"EUR 609 en EUR 729","MD367NF/A","24,1 x 18,6 x 0,9 cm",885909570645,"zwart",9.6999999999999993,"2048 bij 1536","Full HD","5 Megapixels",null,"UMTS (3G), HSDPA (3.5G), GSM, EDGE (2.75G), HSUPA (3.75G)",null,"Bluetooth, WiFi (802.11g), WiFi (802.11n)","32 GB","Flash",null,null,"Lithium-Polymeer","42,5 Wh",null,null,"10 uur","iOS","5.1","Dual Core A5X",null,"662 gram"]
["Sony Xperia Tablet S 16GB WiFi",36,"EUR 389 en EUR 443",null,"17,4 x 24 x 1,2 cm",4905524896701,"zwart",9.4,"1280 bij 800",null,"8 Megapixels","3264 x 2448",null,null,"Bluetooth, hoofdtelefoon, WiFi (802.11g), WiFi (802.11n)","16 GB","Flash","1 GB","SD, SDHC, UHS-I","Lithium-Ion",null,null,null,"12 uur","Android","4.0.3","NVIDIA Tegra 3-mobiele","1,3 GHz"]
["Asus Vivo Tab TF600T 64GB excl dock",37,"EUR 599 en EUR 649","90OK0NB1100680Y","x x 0,9 cm",886227324231,"grijs",11.6,"1366 bij 768",null,"8 Megapixels",null,null,null,"Bluetooth, WiFi (802.11g), WiFi (802.11n)","64 GB",null,"2 GB","Micro-SD, Micro-SDHC, Micro-SDXC",null,"25 Wh",null,null,null,"Windows 8",null,"nVidia Tegra 3","1,3 GHz","675 gram"]
["Empire Electronix M712 4GB WiFi",38,"EUR 89 en EUR 102",null,"x x cm",8718226790071,null,7,"800 bij 480",null,null,null,null,null,"HDMI, hoofdtelefoon, USB 2.0, WiFi (802.11g)","4 GB","Flash","0,5 GB","Micro-SD","Lithium-Ion",null,"2500 mAh",null,null,"Android","4.0","Cortex A8","1,2 GHz"]
["Acer ICONIA Tab W510 32GB WiFi",39,"EUR 499 en EUR 549","NT.L0MEH.005","16,8 x 25,8 x 0,9 cm",4712196445546,"zilver",10.1,"1366 bij 768",null,"2,0 Megapixels",null,null,null,"Bluetooth, HDMI, hoofdtelefoon, USB 2.0, WiFi (802.11g)","32 GB","SSD",null,"Micro-SD","Lithium-Polymeer",null,"3540 mAh",null,"18,0 uur","Windows 8",null,"Z2760","1,8 GHz","580 gram"]
["Apple iPad 4 32GB 4G",40,"EUR 701 en EUR 886","MD523NF/A","24,1 x 18,6 x 0,9 cm",885909658169,"zwart",9.6999999999999993,"2048 bij 1536","Full HD","5 Megapixels",null,"UMTS (3G), HSDPA (3.5G), GSM, EDGE (2.75G), HSUPA (3.75G)","micro SIM","Bluetooth, WiFi (802.11g), WiFi (802.11n)","32 GB","Flash",null,null,"Lithium-Polymeer","42,5 Wh",null,null,"10 uur","iOS",null,"Dual Core A6X quad-core graphics",null,"662 gram"]
["Apple iPad 3 16GB 4G wit",41,"EUR 519 en EUR 629","MD369NF/A","24,1 x 18,6 x 0,9 cm",885909571246,"wit",9.6999999999999993,"2048 bij 1536","Full HD","5 Megapixels",null,"UMTS (3G), HSDPA (3.5G), GSM, EDGE (2.75G), HSUPA (3.75G)",null,"Bluetooth, WiFi (802.11g), WiFi (802.11n)","16 GB","Flash",null,null,"Lithium-Polymeer","42,5 Wh",null,null,"10 uur","iOS","5.1","Dual Core A5X",null,"662 gram"]
["Asus Transformer Pad TF300T 32GB",42,"EUR 478 en EUR 591","TF300TG-1A101A","26,3 x 18 x 1 cm",4716659194248,"wit",10.1,"1280 bij 800",null,"8 Megapixels",null,"UMTS (3G), HSDPA (3.5G)",null,"Bluetooth, HDMI, hoofdtelefoon, WiFi (802.11g), WiFi (802.11n)","32 GB","SSD","1 GB","Micro-SD, Micro-SDHC","Lithium-Polymeer","38,5 Wh",null,null,"15 uur","Android","4.0","nVidia Tegra 3","1,2 GHz","1181 gram"]
["BlackBerry PlayBook 64 GB",43,"EUR 185 en EUR 209",null,"13 x 19,4 x 1 cm",843163074705,"zwart",7,"1024 bij 600","HD ready",null,"2592 x 1944",null,null,"Bluetooth, HDMI, hoofdtelefoon, USB 2.0, WiFi (802.11g), WiFi (802.11n)","64 GB","Flash","1 GB",null,"Lithium-Polymeer","20 Wh",null,null,null,null,"BlackBerry Tablet OS","dual-core Cortex-A9 CPU","1 GHz","425 gram"]
["Apple iPad 4 64GB 4G",44,"EUR 809 en EUR 1.002","MD524NF/A","24,1 x 18,6 x 0,9 cm",885909658374,"zwart",9.6999999999999993,"2048 bij 1536","Full HD","5 Megapixels",null,"UMTS (3G), HSDPA (3.5G), GSM, EDGE (2.75G), HSUPA (3.75G)","micro SIM","Bluetooth, WiFi (802.11g), WiFi (802.11n)","64 GB","Flash",null,null,"Lithium-Polymeer","42,5 Wh",null,null,"10 uur","iOS",null,"Dual Core A6X quad-core graphics",null,"662 gram"]
["Samsung GALAXY NOTE 10 16GB 3G",45,"EUR 459 en EUR 619","GT-N8000ZWADBT","26,2 x 18,0 x 0,9 cm",8806071977157,"wit",10.1,"1280 bij 800",null,"5,0 Megapixels",null,"UMTS (3G), EDGE (2.75G)",null,"Bluetooth, HDMI, hoofdtelefoon, WiFi (802.11g)","16 GB","Flash",null,null,null,null,"7000 mAh",null,"1500,0 uur","Android","4.0",null,"1,4 GHz","600 gram"]
["Sony Tablet P",46,"EUR 459 en EUR 546","SGPT211NL","15,8 x 18 x 1,8 cm",4905524798883,"zwart",5.5,"1024 bij 480",null,null,"2592 x 1944",null,null,"Bluetooth, hoofdtelefoon, USB 2.0, WiFi (802.11g), WiFi (802.11n)","4 GB","Flash",null,"Micro-SD, Micro-SDHC","Lithium-Ion",null,null,"7 uur",null,"Android",null,null,"1 GHz","372 gram"]
["Apple iPad 3 64GB",47,"EUR 584 en EUR 699","MC707NF/A","24,1 x 18,6 x 0,9 cm",885909550005,"zwart",9.6999999999999993,"2048 bij 1536","Full HD","5 Megapixels",null,null,null,"Bluetooth, WiFi (802.11g), WiFi (802.11n)","64 GB","Flash",null,null,"Lithium-Polymeer","42,5 Wh",null,null,"10 uur","iOS","5.1","Dual Core A5X",null,"652 gram"]
["Apple iPad 2 3G 16GB",48,"EUR 469 en EUR 631","MC982FD/A","24,1 x 18,6 x 0,9 cm",8715319818872,"wit",9.6999999999999993,"1024 bij 768","HD ready",null,null,"UMTS (3G), HSDPA (3.5G), GSM, EDGE (2.75G), HSUPA (3.75G)","ja, micro SIM","Bluetooth, Bluetooth met A2DP, hoofdtelefoon, WiFi (802.11g), WiFi (802.11n)","16 GB","Flash",null,null,"Lithium-Polymeer","25 Wh",null,"10 uur",null,"iOS","iOS 4.3","Dual-Core","1 GHz","613 gram"]
["Apple iPad mini 32GB WiFi",49,"EUR 424 en EUR 523","MD529NF/A","20 x 13,5 x 0,7 cm",885909663606,"zwart",7.9,"1024 bij 768","HD ready","5 Megapixels",null,null,null,"Bluetooth, hoofdtelefoon, WiFi (802.11g), WiFi (802.11n)","32 GB",null,null,null,"Lithium-Polymeer","16,3 Wh",null,null,"10 uur","iOS",null,"Apple A5 Cortex A9 dual-core",null,"308 gram"]
["Apple iPad mini 16GB 4G",50,"EUR 457 en EUR 559","MD540NF/A","20 x 13,5 x 0,7 cm",885909669356,"zwart",7.9,"1024 bij 768","HD ready","5 Megapixels",null,"UMTS (3G), HSDPA (3.5G), GSM, EDGE (2.75G)","nano SIM","Bluetooth, hoofdtelefoon, WiFi (802.11g), WiFi (802.11n)","16 GB",null,null,null,"Lithium-Polymeer","16,3 Wh",null,null,"10 uur","iOS",null,"Apple A5 Cortex A9 dual-core",null,"312 gram"]
["Asus Transformer Pad 300T WiFi 16GB",51,"EUR 344 en EUR 350","90OK0GB2105610W","26,3 x 18 x 1 cm",4716659339465,"blauw",10.1,"1280 bij 800",null,"8 Megapixels",null,null,null,"Bluetooth, HDMI, WiFi (802.11g), WiFi (802.11n)","16 GB","SSD","1 GB","Micro-SD, Micro-SDHC","Lithium-Ion","22 Wh",null,null,null,"Android",null,"nVidia Tegra 3 Quad","1,6 GHz","1181 gram"]
["Apple iPad 4 16GB 4G",52,"EUR 604 en EUR 764","MD522NF/A","24,1 x 18,6 x 0,9 cm",885909657957,"zwart",9.6999999999999993,"2048 bij 1536","Full HD","5 Megapixels",null,"UMTS (3G), HSDPA (3.5G), GSM, EDGE (2.75G), HSUPA (3.75G)","micro SIM","Bluetooth, WiFi (802.11g), WiFi (802.11n)","16 GB","Flash",null,null,"Lithium-Polymeer","42,5 Wh",null,null,"10 uur","iOS",null,"Dual Core A6X quad-core graphics",null,"662 gram"]
["Difrnce DIT1010 8GB",53,"EUR 169 en EUR 199",null,"19 x 24,3 x 1 cm",8717524705206,"zwart",9.6999999999999993,"1024 bij 768",null,"2 Megapixels",null,null,null,"hoofdtelefoon, USB 2.0, WiFi (802.11g), WiFi (802.11n)","8 GB","Flash",null,"Micro-SD","Lithium-Polymeer",null,"4000 mAh",null,null,"Android","4.0","Rockchip 2918 A8","1 GHz","630 gram"]
["Yarvik TAB462EUK",54,"EUR 194 en EUR 222",null,"22,5 x 30,4 x 0,7 cm",8717534018402,"wit, zilver",10,"1280 bij 800",null,"2 Megapixels",null,null,null,"HDMI, hoofdtelefoon, WiFi (802.11g), WiFi (802.11n)","8 GB","Flash","1 GB","Micro-SD, ja",null,null,"6000 mAh","4 uur",null,"Android","Ice Cream Sandwich",null,"1,2 GHz","622 gram"]
["Acer Iconia Tab A510 (32GB)",55,"EUR 329 en EUR 449","HT.H9LEE.006","26 x 17,5 x 1,1 cm",4712196039011,"zwart",10.1,"1280 bij 800",null,"5 Megapixels",null,null,null,"Bluetooth, hoofdtelefoon, USB 2.0, WiFi (802.11g), WiFi (802.11n)","32 GB","SSD","1 GB","Micro-SD, Micro-SDHC","Lithium-Ion",null,null,null,null,"Android","4.0","nVidia Tegra 3","1,3 GHz","675 gram"]
["Lenco Tab-1014 8Gb WiFi",56,"EUR 167 en EUR 199",null,"16,5 x 26 x 1,5 cm",8711902028741,"zwart",10.1,"1024 bij 600",null,"2 Megapixels",null,"UMTS (3G)",null,"HDMI, hoofdtelefoon, USB 2.0, WiFi (802.11g), WiFi (802.11n)","8 GB","Flash",null,"Micro-SD, ja","Lithium-Polymeer",null,null,null,"6 uur","Android","4.0",null,"1,2 GHz","680 gram"]
["Difrnce DIT9720 8GB",57,"EUR 179 en EUR 199",null,"19 x 24,3 x 1 cm",8717524705435,"zwart",9.6999999999999993,"1024 bij 768",null,"2 Megapixels",null,null,null,"Bluetooth, HDMI, hoofdtelefoon, USB 2.0, WiFi (802.11g), WiFi (802.11n)","8 GB",null,"1 GB","Micro-SD","Lithium-Polymeer","29 Wh","8000 mAh",null,null,"Android","4.1","Rockchip 3066 Cortex A9 Dual Core","1,6 GHz","630 gram"]
[1,58,2,5,9,10,12,13,14,16,19,20,22,23,24,27,28,29,30,37,38,39,40,41,42,44,45,46,48]

{"sheet":"Sheet5","index":2,"n_rows":487,"n_cols":6,"rows_kept":487,"cut":false,"hidden":true,"merged":[]}
[]
[]
[]
[]
[]
[]
[]
[]
[]
[]
[]
[]
[]
[]
[]
[]
[]
[]
[]
[]
[]
[null,null,null,null,null,"http://www.firmfocus.biz/"]
[null,null,null,null,null,"http://www.firmfocus.biz/loginpages/login.php"]
[null,null,null,null,null,"http://www.firmfocus.biz/loginpages/mijn_gegevens.php"]
[null,null,null,null,null,"http://www.firmfocus.biz/loginpages/Subscriptionsklanten.php"]
[null,null,null,null,null,"http://www.firmfocus.biz/NL/disclaimer%20Firmfocus.php"]
[null,null,null,null,null,"http://www.firmfocus.biz/NL/documenten/belasting/2011%20plan/informatieblad_autobelastingen.pdf"]
[null,null,null,null,null,"http://www.firmfocus.biz/NL/documenten/belasting/2011%20plan/informatieblad_btw_renovatie.pdf"]
[null,null,null,null,null,"http://www.firmfocus.biz/NL/documenten/belasting/2011%20plan/informatieblad_stimulering_woningmarkt.pdf"]
[null,null,null,null,null,"http://www.firmfocus.biz/NL/documenten/intelligence/CBS/CBS_KW3.pdf"]
[null,null,null,null,null,"http://www.firmfocus.biz/NL/documenten/intelligence/HBD/Multichannel-Monitor-HBD-2010.pdf"]
[null,null,null,null,null,"http://www.firmfocus.biz/NL/documenten/intelligence/Ontwikkelingen%20MKB%20van%202011%20tot%202015%20(EIM).pdf"]
[null,null,null,null,null,"http://www.firmfocus.biz/NL/documenten/Ondernemingsplan/ondernemingsplan-template-firmfocus.doc"]
[null,null,null,null,null,"http://www.firmfocus.biz/NL/documenten/Ondernemingsplan/ondernemingsplan-template-firmfocus.docx"]
[null,null,null,null,null,"http://www.firmfocus.biz/NL/documenten/Ondernemingsplan/Ondernemingsplan-voorbeeld-Senta-NL.doc"]
[null,null,null,null,null,"http://www.firmfocus.biz/NL/documenten/Ondernemingsplan/Rabobank-schoonheidssalon.pdf"]
[null,null,null,null,null,"http://www.firmfocus.biz/NL/documenten/Ondernemingsplan/Rabobank-software-detailhandel.pdf"]
[null,null,null,null,null,"http://www.firmfocus.biz/NL/documenten/Ondernemingsplan/voorbeeld_ondernemersplan-1.pdf"]
[null,null,null,null,null,"http://www.firmfocus.biz/NL/documenten/subsidie/Aftrek%20speur%20en%20ontwikkelingswerk%20informatie%20WBSO.pdf"]
[null,null,null,null,null,"http://www.firmfocus.biz/NL/documenten/subsidie/Microfinanciering%20EZ.pdf"]
[null,null,null,null,null,"http://www.firmfocus.biz/NL/documenten/subsidie/StartenVanuitUitkeringKvK.pdf"]
[null,null,null,null,null,"http://www.firmfocus.biz/NL/documenten/subsidie/StartenVanuitUitkeringUwV.pdf"]
[null,null,null,null,null,"http://www.firmfocus.biz/NL/finance.php"]
[null,null,null,null,null,"http://www.firmfocus.biz/NL/Financieel/analyses/auto_zakelijk_prive_kopen_leasen.php"]
[null,null,null,null,null,"http://www.firmfocus.biz/NL/Financieel/analyses/auto_zakelijk_verrekening_prive.php"]
[null,null,null,null,null,"http://www.firmfocus.biz/NL/Financieel/analyses/auto_zakelijk_verrekening_prive_BTW.php"]
[null,null,null,null,null,"http://www.firmfocus.biz/NL/Financieel/analyses/bepaal_autokosten_lease_koop_prive_zakelijk_Excel.php"]
[null,null,null,null,null,"http://www.firmfocus.biz/NL/Financieel/boekhouden/finance-oudedagsreserve.php"]
[null,null,null,null,null,"http://www.firmfocus.biz/NL/Financieel/excel-boekhouden/"]
[null,null,null,null,null,"http://www.firmfocus.biz/NL/Financieel/excel-boekhouden/date-and-timepicker-control-installatie.php"]
[null,null,null,null,null,"http://www.firmfocus.biz/NL/Financieel/excel-boekhouden/excel-boekhouden-activa.php"]
[null,null,null,null,null,"http://www.firmfocus.biz/NL/Financieel/excel-boekhouden/excel-boekhouden-factuur-debiteuren.php"]
[null,null,null,null,null,"http://www.firmfocus.biz/NL/Financieel/excel-boekhouden/excel-boekhouden-journaalpost.php"]
[null,null,null,null,null,"http://www.firmfocus.biz/NL/Financieel/excel-boekhouden/excel-boekhouden-portal-fout-correctie.php"]
[null,null,null,null,null,"http://www.firmfocus.biz/NL/Financieel/finance-10-tips-financieel-mkb.php"]
[null,null,null,null,null,"http://www.firmfocus.biz/NL/Financieel/finance-aangifte-belasting.php"]
[null,null,null,null,null,"http://www.firmfocus.biz/NL/Financieel/finance-activity-based-costing.php"]
[null,null,null,null,null,"http://www.firmfocus.biz/NL/Financieel/finance-belastingaangifte-te-laat.php"]
[null,null,null,null,null,"http://www.firmfocus.biz/NL/Financieel/finance-belastingplan-2011.php"]
[null,null,null,null,null,"http://www.firmfocus.biz/NL/Financieel/finance-IB-foute-aangifte.php"]
[null,null,null,null,null,"http://www.firmfocus.biz/NL/Financieel/finance-omzetbelasting.php"]
[null,null,null,null,null,"http://www.firmfocus.biz/NL/Financieel/finance-ondernemen-binnen%20EU-fiscaal.php"]
[null,null,null,null,null,"http://www.firmfocus.biz/NL/Financieel/finance-ondernemen-buiten%20EU-fiscaal.php"]
[null,null,null,null,null,"http://www.firmfocus.biz/NL/Financieel/finance-ondernemen-buitenland-diensten-fiscaal.php"]
[null,null,null,null,null,"http://www.firmfocus.biz/NL/Financieel/finance-online-boekhouden.php"]
[null,null,null,null,null,"http://www.firmfocus.biz/NL/Financieel/finance-online-boekhouden.php"]
[null,null,null,null,null,"http://www.firmfocus.biz/NL/Financieel/finance-pensioen-zelfstandigen.php"]
[null,null,null,null,null,"http://www.firmfocus.biz/NL/Financieel/finance-subsidies-en-regelingen.php"]
[null,null,null,null,null,"http://www.firmfocus.biz/NL/Financieel/finance-zorgverzekering.php"]
[null,null,null,null,null,"http://www.firmfocus.biz/NL/Financieel/fiscaal/fiscaal-VAR-verklaring.php"]
[null,null,null,null,null,"http://www.firmfocus.biz/NL/Financieel/fiscaal/fiscaal-wuo-of-niet.php"]
[null,null,null,null,null,"http://www.firmfocus.biz/NL/Financieel/investeringsaftrek-2011.php"]
[null,null,null,null,null,"http://www.firmfocus.biz/NL/Financieel/zelf_boekhouden_NL.php"]
[null,null,null,null,null,"http://www.firmfocus.biz/NL/intelligence/bedrijfstak/sector-informatie-aardappelproductenindustrie.php"]
[null,null,null,null,null,"http://www.firmfocus.biz/NL/intelligence/bedrijfstak/sector-informatie-aardolie-industrie.php"]
[null,null,null,null,null,"http://www.firmfocus.biz/NL/intelligence/bedrijfstak/sector-informatie-accountancy,-administratie-ed.php"]
[null,null,null,null,null,"http://www.firmfocus.biz/NL/intelligence/bedrijfstak/sector-informatie-afvalbehandeling-en-recycling.php"]
[null,null,null,null,null,"http://www.firmfocus.biz/NL/intelligence/bedrijfstak/sector-informatie-afvalwaterinzameling-en-behandeling.php"]
[null,null,null,null,null,"http://www.firmfocus.biz/NL/intelligence/bedrijfstak/sector-informatie-afwerkingsbedrijven-(bouw).php"]
[null,null,null,null,null,"http://www.firmfocus.biz/NL/intelligence/bedrijfstak/sector-informatie-algemene-b&amp;u-bouw.php"]
[null,null,null,null,null,"http://www.firmfocus.biz/NL/intelligence/bedrijfstak/sector-informatie-algemene-bouw-en-projectontwikkeling.php"]
[null,null,null,null,null,"http://www.firmfocus.biz/NL/intelligence/bedrijfstak/sector-informatie-algemene-metaalbewerkingsindustrie.php"]
[null,null,null,null,null,"http://www.firmfocus.biz/NL/intelligence/bedrijfstak/sector-informatie-apotheken.php"]
[null,null,null,null,null,"http://www.firmfocus.biz/NL/intelligence/bedrijfstak/sector-informatie-arbeidsbemiddeling.php"]
[null,null,null,null,null,"http://www.firmfocus.biz/NL/intelligence/bedrijfstak/sector-informatie-architectenbureaus.php"]
[null,null,null,null,null,"http://www.firmfocus.biz/NL/intelligence/bedrijfstak/sector-informatie-architecten-en-ingenieursbureaus.php"]
[null,null,null,null,null,"http://www.firmfocus.biz/NL/intelligence/bedrijfstak/sector-informatie-architecten-ingenieursbureaus-ed.php"]
[null,null,null,null,null,"http://www.firmfocus.biz/NL/intelligence/bedrijfstak/sector-informatie-auto-en-aanhangwagenindustrie.php"]
[null,null,null,null,null,"http://www.firmfocus.biz/NL/intelligence/bedrijfstak/sector-informatie-autohandel-en-reparatie.php"]
[null,null,null,null,null,"http://www.firmfocus.biz/NL/intelligence/bedrijfstak/sector-informatie-auto-industrie.php"]
[null,null,null,null,null,"http://www.firmfocus.biz/NL/intelligence/bedrijfstak/sector-informatie-auto-onderdelenindustrie.php"]
[null,null,null,null,null,"http://www.firmfocus.biz/NL/intelligence/bedrijfstak/sector-informatie-banket-en-koekindustrie.php"]
[null,null,null,null,null,"http://www.firmfocus.biz/NL/intelligence/bedrijfstak/sector-informatie-basischemie.php"]
[null,null,null,null,null,"http://www.firmfocus.biz/NL/intelligence/bedrijfstak/sector-informatie-basismetaal,-metaalprod-industrie.php"]
[null,null,null,null,null,"http://www.firmfocus.biz/NL/intelligence/bedrijfstak/sector-informatie-basismetaalindustrie.php"]
[null,null,null,null,null,"http://www.firmfocus.biz/NL/intelligence/bedrijfstak/sector-informatie-bedrijfsmeubelindustrie.php"]
[null,null,null,null,null,"http://www.firmfocus.biz/NL/intelligence/bedrijfstak/sector-informatie-behandeling-van-afval.php"]
[null,null,null,null,null,"http://www.firmfocus.biz/NL/intelligence/bedrijfstak/sector-informatie-bestek-gereedschapindustrie-ed.php"]
[null,null,null,null,null,"http://www.firmfocus.biz/NL/intelligence/bedrijfstak/sector-informatie-beton-gips-cementwarenindustrie.php"]
[null,null,null,null,null,"http://www.firmfocus.biz/NL/intelligence/bedrijfstak/sector-informatie-betonwaren-kalkzandsteenindustrie.php"]
[null,null,null,null,null,"http://www.firmfocus.biz/NL/intelligence/bedrijfstak/sector-informatie-beveiligings-en-opsporingsdiensten.php"]
[null,null,null,null,null,"http://www.firmfocus.biz/NL/intelligence/bedrijfstak/sector-informatie-binnenvaart.php"]
[null,null,null,null,null,"http://www.firmfocus.biz/NL/intelligence/bedrijfstak/sector-informatie-bloemen-dierenwinkels,-tuincentra.php"]
[null,null,null,null,null,"http://www.firmfocus.biz/NL/intelligence/bedrijfstak/sector-informatie-bouwinstallatiebedrijven.php"]
[null,null,null,null,null,"http://www.firmfocus.biz/NL/intelligence/bedrijfstak/sector-informatie-bouwmaterialenindustrie.php"]
[null,null,null,null,null,"http://www.firmfocus.biz/NL/intelligence/bedrijfstak/sector-informatie-bouwnijverheid.php"]
[null,null,null,null,null,"http://www.firmfocus.biz/NL/intelligence/bedrijfstak/sector-informatie-bouw-van-wegen,-spoorwegen,-tunnels.php"]
[null,null,null,null,null,"http://www.firmfocus.biz/NL/intelligence/bedrijfstak/sector-informatie-brood-en-deegwarenindustrie.php"]
[null,null,null,null,null,"http://www.firmfocus.biz/NL/intelligence/bedrijfstak/sector-informatie-buizen-en-kabelleggers.php"]
[null,null,null,null,null,"http://www.firmfocus.biz/NL/intelligence/bedrijfstak/sector-informatie-cacao-en-chocoladewerkindustrie.php"]
[null,null,null,null,null,"http://www.firmfocus.biz/NL/intelligence/bedrijfstak/sector-informatie-cafes.php"]
[null,null,null,null,null,"http://www.firmfocus.biz/NL/intelligence/bedrijfstak/sector-informatie-cafetaria's,-ijssalons-ed.php"]
[null,null,null,null,null,"http://www.firmfocus.biz/NL/intelligence/bedrijfstak/sector-informatie-carrosserie-aanhangwagenindustrie.php"]
[null,null,null,null,null,"http://www.firmfocus.biz/NL/intelligence/bedrijfstak/sector-informatie-chemie-en-farmaceutische-industrie.php"]
[null,null,null,null,null,"http://www.firmfocus.biz/NL/intelligence/bedrijfstak/sector-informatie-chemische-industrie.php"]
[null,null,null,null,null,"http://www.firmfocus.biz/NL/intelligence/bedrijfstak/sector-informatie-communicatie-apparatenindustrie.php"]
[null,null,null,null,null,"http://www.firmfocus.biz/NL/intelligence/bedrijfstak/sector-informatie-consumentenelektronica-industrie.php"]
[null,null,null,null,null,"http://www.firmfocus.biz/NL/intelligence/bedrijfstak/sector-informatie-dakbouwbedrijven.php"]
[null,null,null,null,null,"http://www.firmfocus.biz/NL/intelligence/bedrijfstak/sector-informatie-delfstoffenwinning-(geen-olie-en-gas).php"]
[null,null,null,null,null,"http://www.firmfocus.biz/NL/intelligence/bedrijfstak/sector-informatie-delfstoffenwinning.php"]
[null,null,null,null,null,"http://www.firmfocus.biz/NL/intelligence/bedrijfstak/sector-informatie-design,-fotografie,-vertaalbureaus.php"]
[null,null,null,null,null,"http://www.firmfocus.biz/NL/intelligence/bedrijfstak/sector-informatie-detailhandel-(niet-in-auto's).php"]
[null,null,null,null,null,"http://www.firmfocus.biz/NL/intelligence/bedrijfstak/sector-informatie-detailhandel,-geen-winkel-of-markt.php"]
[null,null,null,null,null,"http://www.firmfocus.biz/NL/intelligence/bedrijfstak/sector-informatie-diensten-op-het-gebied-van-informatie.php"]
[null,null,null,null,null,"http://www.firmfocus.biz/NL/intelligence/bedrijfstak/sector-informatie-dienstverlening-delfstoffenwinning.php"]
[null,null,null,null,null,"http://www.firmfocus.biz/NL/intelligence/bedrijfstak/sector-informatie-dienstverlening-voor-de-landbouw.php"]
[null,null,null,null,null,"http://www.firmfocus.biz/NL/intelligence/bedrijfstak/sector-informatie-dienstverlening-voor-de-luchtvaart.php"]
[null,null,null,null,null,"http://www.firmfocus.biz/NL/intelligence/bedrijfstak/sector-informatie-dienstverlening-voor-de-scheepvaart.php"]
[null,null,null,null,null,"http://www.firmfocus.biz/NL/intelligence/bedrijfstak/sector-informatie-dienstverlening-voor-landvervoer.php"]
[null,null,null,null,null,"http://www.firmfocus.biz/NL/intelligence/bedrijfstak/sector-informatie-dienstverlening-voor-vervoer.php"]
[null,null,null,null,null,"http://www.firmfocus.biz/NL/intelligence/bedrijfstak/sector-informatie-diervoederindustrie.php"]
[null,null,null,null,null,"http://www.firmfocus.biz/NL/intelligence/bedrijfstak/sector-informatie-drankenindustrie.php"]
[null,null,null,null,null,"http://www.firmfocus.biz/NL/intelligence/bedrijfstak/sector-informatie-drogisten,-orthopedische-winkels.php"]
[null,null,null,null,null,"http://www.firmfocus.biz/NL/intelligence/bedrijfstak/sector-informatie-drukkerijen-en-diensten-daarvoor.php"]
[null,null,null,null,null,"http://www.firmfocus.biz/NL/intelligence/bedrijfstak/sector-informatie-edel-en-non-ferrometaalindustrie.php"]
[null,null,null,null,null,"http://www.firmfocus.biz/NL/intelligence/bedrijfstak/sector-informatie-elektra-kabel-schakelaarindustrie.php"]
[null,null,null,null,null,"http://www.firmfocus.biz/NL/intelligence/bedrijfstak/sector-informatie-elektrische-apparatenindustrie.php"]
[null,null,null,null,null,"http://www.firmfocus.biz/NL/intelligence/bedrijfstak/sector-informatie-elektrische-en-elektron-industrie.php"]
[null,null,null,null,null,"http://www.firmfocus.biz/NL/intelligence/bedrijfstak/sector-informatie-elektrische-verlichtingsindustrie.php"]
[null,null,null,null,null,"http://www.firmfocus.biz/NL/intelligence/bedrijfstak/sector-informatie-elektromotor-en-panelenindustrie.php"]
[null,null,null,null,null,"http://www.firmfocus.biz/NL/intelligence/bedrijfstak/sector-informatie-elektrotechnische-industrie.php"]
[null,null,null,null,null,"http://www.firmfocus.biz/NL/intelligence/bedrijfstak/sector-informatie-elektrotechnische-machine-industrie.php"]
[null,null,null,null,null,"http://www.firmfocus.biz/NL/intelligence/bedrijfstak/sector-informatie-energiebedrijven.php"]
[null,null,null,null,null,"http://www.firmfocus.biz/NL/intelligence/bedrijfstak/sector-informatie-energievoorziening.php"]
[null,null,null,null,null,"http://www.firmfocus.biz/NL/intelligence/bedrijfstak/sector-informatie-farmaceutische-grondstofindustrie.php"]
[null,null,null,null,null,"http://www.firmfocus.biz/NL/intelligence/bedrijfstak/sector-informatie-farmaceutische-industrie.php"]
[null,null,null,null,null,"http://www.firmfocus.biz/NL/intelligence/bedrijfstak/sector-informatie-farmaceutische-productenindustrie.php"]
[null,null,null,null,null,"http://www.firmfocus.biz/NL/intelligence/bedrijfstak/sector-informatie-film-en-tv-productie;-geluidsopname.php"]
[null,null,null,null,null,"http://www.firmfocus.biz/NL/intelligence/bedrijfstak/sector-informatie-frisdrankindustrie.php"]
[null,null,null,null,null,"http://www.firmfocus.biz/NL/intelligence/bedrijfstak/sector-informatie-gereedschapswerktuigenindustrie.php"]
[null,null,null,null,null,"http://www.firmfocus.biz/NL/intelligence/bedrijfstak/sector-informatie-gespecialiseerde-autoreparatie.php"]
[null,null,null,null,null,"http://www.firmfocus.biz/NL/intelligence/bedrijfstak/sector-informatie-gespecialiseerde-bouw.php"]
[null,null,null,null,null,"http://www.firmfocus.biz/NL/intelligence/bedrijfstak/sector-informatie-glas-en-glaswerkindustrie.php"]
[null,null,null,null,null,"http://www.firmfocus.biz/NL/intelligence/bedrijfstak/sector-informatie-goederenvervoer-over-de-weg.php"]
[null,null,null,null,null,"http://www.firmfocus.biz/NL/intelligence/bedrijfstak/sector-informatie-goederenwegvervoer-(geen-verhuis-).php"]
[null,null,null,null,null,"http://www.firmfocus.biz/NL/intelligence/bedrijfstak/sector-informatie-grafische-industrie.php"]
[null,null,null,null,null,"http://www.firmfocus.biz/NL/intelligence/bedrijfstak/sector-informatie-groente-fruitverwerkende-industrie.php"]
[null,null,null,null,null,"http://www.firmfocus.biz/NL/intelligence/bedrijfstak/sector-informatie-grond-water--en-wegenbouw.php"]
[null,null,null,null,null,"http://www.firmfocus.biz/NL/intelligence/bedrijfstak/sector-informatie-groothandel.php"]
[null,null,null,null,null,"http://www.firmfocus.biz/NL/intelligence/bedrijfstak/sector-informatie-groothandel-consumentenapparatuur.php"]
[null,null,null,null,null,"http://www.firmfocus.biz/NL/intelligence/bedrijfstak/sector-informatie-groothandel-en-handelsbemiddeling.php"]
[null,null,null,null,null,"http://www.firmfocus.biz/NL/intelligence/bedrijfstak/sector-informatie-groothandel-in-afval-en-schroot.php"]
[null,null,null,null,null,"http://www.firmfocus.biz/NL/intelligence/bedrijfstak/sector-informatie-groothandel-in-akkerbouwproducten.php"]
[null,null,null,null,null,"http://www.firmfocus.biz/NL/intelligence/bedrijfstak/sector-informatie-groothandel-in-bloemen-en-planten.php"]
[null,null,null,null,null,"http://www.firmfocus.biz/NL/intelligence/bedrijfstak/sector-informatie-groothandel-in-bouwmaterialen.php"]
[null,null,null,null,null,"http://www.firmfocus.biz/NL/intelligence/bedrijfstak/sector-informatie-groothandel-in-chemische-producten.php"]
[null,null,null,null,null,"http://www.firmfocus.biz/NL/intelligence/bedrijfstak/sector-informatie-groothandel-in-computers-software.php"]
[null,null,null,null,null,"http://www.firmfocus.biz/NL/intelligence/bedrijfstak/sector-informatie-groothandel-in-dranken-geen-zuivel.php"]
[null,null,null,null,null,"http://www.firmfocus.biz/NL/intelligence/bedrijfstak/sector-informatie-groothandel-in-groenten-fruit-ed.php"]
[null,null,null,null,null,"http://www.firmfocus.biz/NL/intelligence/bedrijfstak/sector-informatie-groothandel-in-ict-apparatuur.php"]
[null,null,null,null,null,"http://www.firmfocus.biz/NL/intelligence/bedrijfstak/sector-informatie-groothandel-in-industriemachines.php"]
[null,null,null,null,null,"http://www.firmfocus.biz/NL/intelligence/bedrijfstak/sector-informatie-groothandel-in-kleding-en-schoenen.php"]
[null,null,null,null,null,"http://www.firmfocus.biz/NL/intelligence/bedrijfstak/sector-informatie-groothandel-in-landbouwproducten.php"]
[null,null,null,null,null,"http://www.firmfocus.biz/NL/intelligence/bedrijfstak/sector-informatie-groothandel-in-medische-artikelen.php"]
[null,null,null,null,null,"http://www.firmfocus.biz/NL/intelligence/bedrijfstak/sector-informatie-groothandel-in-metaal-en-erts.php"]
[null,null,null,null,null,"http://www.firmfocus.biz/NL/intelligence/bedrijfstak/sector-informatie-groothandel-in-non-food.php"]
[null,null,null,null,null,"http://www.firmfocus.biz/NL/intelligence/bedrijfstak/sector-informatie-groothandel-in-olie-en-steenkool.php"]
[null,null,null,null,null,"http://www.firmfocus.biz/NL/intelligence/bedrijfstak/sector-informatie-groothandel-in-overige-elektronica.php"]
[null,null,null,null,null,"http://www.firmfocus.biz/NL/intelligence/bedrijfstak/sector-informatie-groothandel-in-overige-voeding.php"]
[null,null,null,null,null,"http://www.firmfocus.biz/NL/intelligence/bedrijfstak/sector-informatie-groothandel-in-voeding-algemeen.php"]
[null,null,null,null,null,"http://www.firmfocus.biz/NL/intelligence/bedrijfstak/sector-informatie-groothandel-in-voedingsmiddelen.php"]
[null,null,null,null,null,"http://www.firmfocus.biz/NL/intelligence/bedrijfstak/sector-informatie-groothandel-in-woninginrichting.php"]
[null,null,null,null,null,"http://www.firmfocus.biz/NL/intelligence/bedrijfstak/sector-informatie-handel.php"]
[null,null,null,null,null,"http://www.firmfocus.biz/NL/intelligence/bedrijfstak/sector-informatie-handel-en-reparatie-personenauto's.php"]
[null,null,null,null,null,"http://www.firmfocus.biz/NL/intelligence/bedrijfstak/sector-informatie-handel-en-reparatie-van-motorfietsen.php"]
[null,null,null,null,null,"http://www.firmfocus.biz/NL/intelligence/bedrijfstak/sector-informatie-handel-in-auto-onderdelen.php"]
[null,null,null,null,null,"http://www.firmfocus.biz/NL/intelligence/bedrijfstak/sector-informatie-handel-in-vrachtwagens-aanhangers.php"]
[null,null,null,null,null,"http://www.firmfocus.biz/NL/intelligence/bedrijfstak/sector-informatie-hijs-en-hefwerktuigenindustrie.php"]
[null,null,null,null,null,"http://www.firmfocus.biz/NL/intelligence/bedrijfstak/sector-informatie-holdings-niet-financieel.php"]
[null,null,null,null,null,"http://www.firmfocus.biz/NL/intelligence/bedrijfstak/sector-informatie-horeca.php"]
[null,null,null,null,null,"http://www.firmfocus.biz/NL/intelligence/bedrijfstak/sector-informatie-hotels.php"]
[null,null,null,null,null,"http://www.firmfocus.biz/NL/intelligence/bedrijfstak/sector-informatie-hout-en-bouwmaterialenindustrie.php"]
[null,null,null,null,null,"http://www.firmfocus.biz/NL/intelligence/bedrijfstak/sector-informatie-houtindustrie.php"]
[null,null,null,null,null,"http://www.firmfocus.biz/NL/intelligence/bedrijfstak/sector-informatie-hout-kurk-en-rietwarenindustrie.php"]
[null,null,null,null,null,"http://www.firmfocus.biz/NL/intelligence/bedrijfstak/sector-informatie-huishoudelijke-apparatenindustrie.php"]
[null,null,null,null,null,"http://www.firmfocus.biz/NL/intelligence/bedrijfstak/sector-informatie-import-van-nieuwe-personenauto's.php"]
[null,null,null,null,null,"http://www.firmfocus.biz/NL/intelligence/bedrijfstak/sector-informatie-industrie.php"]
[null,null,null,null,null,"http://www.firmfocus.biz/NL/intelligence/bedrijfstak/sector-informatie-industrie-van-rollend-spoormaterieel.php"]
[null,null,null,null,null,"http://www.firmfocus.biz/NL/intelligence/bedrijfstak/sector-informatie-informatie-en-communicatie.php"]
[null,null,null,null,null,"http://www.firmfocus.biz/NL/intelligence/bedrijfstak/sector-informatie-ingenieursbureaus.php"]
[null,null,null,null,null,"http://www.firmfocus.biz/NL/intelligence/bedrijfstak/sector-informatie-installatie-van-industriele-machines.php"]
[null,null,null,null,null,"http://www.firmfocus.biz/NL/intelligence/bedrijfstak/sector-informatie-interieurreiniging-van-gebouwen.php"]
[null,null,null,null,null,"http://www.firmfocus.biz/NL/intelligence/bedrijfstak/sector-informatie-inzameling-van-afval.php"]
[null,null,null,null,null,"http://www.firmfocus.biz/NL/intelligence/bedrijfstak/sector-informatie-it-dienstverlening.php"]
[null,null,null,null,null,"http://www.firmfocus.biz/NL/intelligence/bedrijfstak/sector-informatie-it-en-informatiedienstverlening.php"]
[null,null,null,null,null,"http://www.firmfocus.biz/NL/intelligence/bedrijfstak/sector-informatie-juridische-diensten-en-administratie.php"]
[null,null,null,null,null,"http://www.firmfocus.biz/NL/intelligence/bedrijfstak/sector-informatie-juweliers.php"]
[null,null,null,null,null,"http://www.firmfocus.biz/NL/intelligence/bedrijfstak/sector-informatie-kantines-en-catering.php"]
[null,null,null,null,null,"http://www.firmfocus.biz/NL/intelligence/bedrijfstak/sector-informatie-kappers-en-schoonheidssalons.php"]
[null,null,null,null,null,"http://www.firmfocus.biz/NL/intelligence/bedrijfstak/sector-informatie-karton-ed-verpakkingenindustrie.php"]
[null,null,null,null,null,"http://www.firmfocus.biz/NL/intelligence/bedrijfstak/sector-informatie-keurings-en-controlediensten.php"]
[null,null,null,null,null,"http://www.firmfocus.biz/NL/intelligence/bedrijfstak/sector-informatie-kledingindustrie.php"]
[null,null,null,null,null,"http://www.firmfocus.biz/NL/intelligence/bedrijfstak/sector-informatie-kunstmestindustrie.php"]
[null,null,null,null,null,"http://www.firmfocus.biz/NL/intelligence/bedrijfstak/sector-informatie-kunststofindustrie.php"]
[null,null,null,null,null,"http://www.firmfocus.biz/NL/intelligence/bedrijfstak/sector-informatie-kunststofplaat-profielindustrie.php"]
[null,null,null,null,null,"http://www.firmfocus.biz/NL/intelligence/bedrijfstak/sector-informatie-kunststofproductenindustrie.php"]
[null,null,null,null,null,"http://www.firmfocus.biz/NL/intelligence/bedrijfstak/sector-informatie-laad-los-en-overslagbedrijven.php"]
[null,null,null,null,null,"http://www.firmfocus.biz/NL/intelligence/bedrijfstak/sector-informatie-landbouwmachine-industrie.php"]
[null,null,null,null,null,"http://www.firmfocus.biz/NL/intelligence/bedrijfstak/sector-informatie-leer-en-schoenenindustrie.php"]
[null,null,null,null,null,"http://www.firmfocus.biz/NL/intelligence/bedrijfstak/sector-informatie-logiesverstrekking.php"]
[null,null,null,null,null,"http://www.firmfocus.biz/NL/intelligence/bedrijfstak/sector-informatie-loodgieters-en-installatiebedrijven.php"]
[null,null,null,null,null,"http://www.firmfocus.biz/NL/intelligence/bedrijfstak/sector-informatie-machine-industrie.php"]
[null,null,null,null,null,"http://www.firmfocus.biz/NL/intelligence/bedrijfstak/sector-informatie-managementadviesbureaus.php"]
[null,null,null,null,null,"http://www.firmfocus.biz/NL/intelligence/bedrijfstak/sector-informatie-markt-en-opinieonderzoek.php"]
[null,null,null,null,null,"http://www.firmfocus.biz/NL/intelligence/bedrijfstak/sector-informatie-markthandel.php"]
[null,null,null,null,null,"http://www.firmfocus.biz/NL/intelligence/bedrijfstak/sector-informatie-medische-instrumentenindustrie.php"]
[null,null,null,null,null,"http://www.firmfocus.biz/NL/intelligence/bedrijfstak/sector-informatie-meelindustrie-(geen-zetmeel).php"]
[null,null,null,null,null,"http://www.firmfocus.biz/NL/intelligence/bedrijfstak/sector-informatie-meelindustrie.php"]
[null,null,null,null,null,"http://www.firmfocus.biz/NL/intelligence/bedrijfstak/sector-informatie-meetapparaten-en-uurwerkindustrie.php"]
[null,null,null,null,null,"http://www.firmfocus.biz/NL/intelligence/bedrijfstak/sector-informatie-metaalgieterijen.php"]
[null,null,null,null,null,"http://www.firmfocus.biz/NL/intelligence/bedrijfstak/sector-informatie-metaalproductenindustrie.php"]
[null,null,null,null,null,"http://www.firmfocus.biz/NL/intelligence/bedrijfstak/sector-informatie-metalektro-industrie.php"]
[null,null,null,null,null,"http://www.firmfocus.biz/NL/intelligence/bedrijfstak/sector-informatie-metalen-bouwproductenindustrie.php"]
[null,null,null,null,null,"http://www.firmfocus.biz/NL/intelligence/bedrijfstak/sector-informatie-meubelindustrie.php"]
[null,null,null,null,null,"http://www.firmfocus.biz/NL/intelligence/bedrijfstak/sector-informatie-motoren-pompen-ed-industrie.php"]
[null,null,null,null,null,"http://www.firmfocus.biz/NL/intelligence/bedrijfstak/sector-informatie-natuursteenbewerkende-industrie.php"]
[null,null,null,null,null,"http://www.firmfocus.biz/NL/intelligence/bedrijfstak/sector-informatie-niet-gespecialiseerde-groothandel.php"]
[null,null,null,null,null,"http://www.firmfocus.biz/NL/intelligence/bedrijfstak/sector-informatie-oppervlaktebehandelingsindustrie.php"]
[null,null,null,null,null,"http://www.firmfocus.biz/NL/intelligence/bedrijfstak/sector-informatie-opslag.php"]
[null,null,null,null,null,"http://www.firmfocus.biz/NL/intelligence/bedrijfstak/sector-informatie-opslag-dienstverlening-voor-vervoer.php"]
[null,null,null,null,null,"http://www.firmfocus.biz/NL/intelligence/bedrijfstak/sector-informatie-optische-instrumentenindustrie.php"]
[null,null,null,null,null,"http://www.firmfocus.biz/NL/intelligence/bedrijfstak/sector-informatie-overige-anorganische-basischemie.php"]
[null,null,null,null,null,"http://www.firmfocus.biz/NL/intelligence/bedrijfstak/sector-informatie-overige-chemische-productenindustrie.php"]
[null,null,null,null,null,"http://www.firmfocus.biz/NL/intelligence/bedrijfstak/sector-informatie-overige-drukkerijen.php"]
[null,null,null,null,null,"http://www.firmfocus.biz/NL/intelligence/bedrijfstak/sector-informatie-overige-gespecialiseerde-bouw.php"]
[null,null,null,null,null,"http://www.firmfocus.biz/NL/intelligence/bedrijfstak/sector-informatie-overige-gespecialiseerde-groothandel.php"]
[null,null,null,null,null,"http://www.firmfocus.biz/NL/intelligence/bedrijfstak/sector-informatie-overige-industrie.php"]
[null,null,null,null,null,"http://www.firmfocus.biz/NL/intelligence/bedrijfstak/sector-informatie-overige-kunststofproductenindustrie.php"]
[null,null,null,null,null,"http://www.firmfocus.biz/NL/intelligence/bedrijfstak/sector-informatie-overige-machine-industrie-algemeen.php"]
[null,null,null,null,null,"http://www.firmfocus.biz/NL/intelligence/bedrijfstak/sector-informatie-overige-machine-industrie-specifiek.php"]
[null,null,null,null,null,"http://www.firmfocus.biz/NL/intelligence/bedrijfstak/sector-informatie-overige-metaalbewerkingsindustrie.php"]
[null,null,null,null,null,"http://www.firmfocus.biz/NL/intelligence/bedrijfstak/sector-informatie-overige-metaalproductenindustrie.php"]
[null,null,null,null,null,"http://www.firmfocus.biz/NL/intelligence/bedrijfstak/sector-informatie-overige-organische-basischemie.php"]
[null,null,null,null,null,"http://www.firmfocus.biz/NL/intelligence/bedrijfstak/sector-informatie-overige-persoonlijke-dienstverlening.php"]
[null,null,null,null,null,"http://www.firmfocus.biz/NL/intelligence/bedrijfstak/sector-informatie-overige-textielproductenindustrie.php"]
[null,null,null,null,null,"http://www.firmfocus.biz/NL/intelligence/bedrijfstak/sector-informatie-overige-transportmiddelenindustrie.php"]
[null,null,null,null,null,"http://www.firmfocus.biz/NL/intelligence/bedrijfstak/sector-informatie-overige-voedingsmiddelenindustrie.php"]
[null,null,null,null,null,"http://www.firmfocus.biz/NL/intelligence/bedrijfstak/sector-informatie-overige-zakelijke-dienstverlening.php"]
[null,null,null,null,null,"http://www.firmfocus.biz/NL/intelligence/bedrijfstak/sector-informatie-papier-en-grafische-industrie.php"]
[null,null,null,null,null,"http://www.firmfocus.biz/NL/intelligence/bedrijfstak/sector-informatie-papier-en-kartonwarenindustrie.php"]
[null,null,null,null,null,"http://www.firmfocus.biz/NL/intelligence/bedrijfstak/sector-informatie-papierindustrie.php"]
[null,null,null,null,null,"http://www.firmfocus.biz/NL/intelligence/bedrijfstak/sector-informatie-payrolling-(personeelsbeheer).php"]
[null,null,null,null,null,"http://www.firmfocus.biz/NL/intelligence/bedrijfstak/sector-informatie-personenvervoer-over-de-weg.php"]
[null,null,null,null,null,"http://www.firmfocus.biz/NL/intelligence/bedrijfstak/sector-informatie-petrochemische-industrie.php"]
[null,null,null,null,null,"http://www.firmfocus.biz/NL/intelligence/bedrijfstak/sector-informatie-pluimveeslachterijen.php"]
[null,null,null,null,null,"http://www.firmfocus.biz/NL/intelligence/bedrijfstak/sector-informatie-post-en-koeriers.php"]
[null,null,null,null,null,"http://www.firmfocus.biz/NL/intelligence/bedrijfstak/sector-informatie-primaire-houtbewerking-ed.php"]
[null,null,null,null,null,"http://www.firmfocus.biz/NL/intelligence/bedrijfstak/sector-informatie-pulp-papier-en-kartonindustrie.php"]
[null,null,null,null,null,"http://www.firmfocus.biz/NL/intelligence/bedrijfstak/sector-informatie-radio-en-televisieomroepen.php"]
[null,null,null,null,null,"http://www.firmfocus.biz/NL/intelligence/bedrijfstak/sector-informatie-raffinaderijen.php"]
[null,null,null,null,null,"http://www.firmfocus.biz/NL/intelligence/bedrijfstak/sector-informatie-raffinaderijen-en-chemie.php"]
[null,null,null,null,null,"http://www.firmfocus.biz/NL/intelligence/bedrijfstak/sector-informatie-rechtskundige-dienstverlening.php"]
[null,null,null,null,null,"http://www.firmfocus.biz/NL/intelligence/bedrijfstak/sector-informatie-reclame-design-overige-diensten.php"]
[null,null,null,null,null,"http://www.firmfocus.biz/NL/intelligence/bedrijfstak/sector-informatie-reclamewezen.php"]
[null,null,null,null,null,"http://www.firmfocus.biz/NL/intelligence/bedrijfstak/sector-informatie-reclamewezen-en-marktonderzoek.php"]
[null,null,null,null,null,"http://www.firmfocus.biz/NL/intelligence/bedrijfstak/sector-informatie-reisbureaus-reisorganisatie-en-info.php"]
[null,null,null,null,null,"http://www.firmfocus.biz/NL/intelligence/bedrijfstak/sector-informatie-reisorganisatiebureaus.php"]
[null,null,null,null,null,"http://www.firmfocus.biz/NL/intelligence/bedrijfstak/sector-informatie-reparatie-en-installatie-van-machines.php"]
[null,null,null,null,null,"http://www.firmfocus.biz/NL/intelligence/bedrijfstak/sector-informatie-reparatie-van-consumentenartikelen.php"]
[null,null,null,null,null,"http://www.firmfocus.biz/NL/intelligence/bedrijfstak/sector-informatie-reparatie-van-machines-en-apparatuur.php"]
[null,null,null,null,null,"http://www.firmfocus.biz/NL/intelligence/bedrijfstak/sector-informatie-repro-van-geluid-beeld-en-software.php"]
[null,null,null,null,null,"http://www.firmfocus.biz/NL/intelligence/bedrijfstak/sector-informatie-research.php"]
[null,null,null,null,null,"http://www.firmfocus.biz/NL/intelligence/bedrijfstak/sector-informatie-restaurants.php"]
[null,null,null,null,null,"http://www.firmfocus.biz/NL/intelligence/bedrijfstak/sector-informatie-restaurants-andere-eetgelegenheden.php"]
[null,null,null,null,null,"http://www.firmfocus.biz/NL/intelligence/bedrijfstak/sector-informatie-restaurants-en-cafes.php"]
[null,null,null,null,null,"http://www.firmfocus.biz/NL/intelligence/bedrijfstak/sector-informatie-rubber-en-kunststofproductindustrie.php"]
[null,null,null,null,null,"http://www.firmfocus.biz/NL/intelligence/bedrijfstak/sector-informatie-rubberproductenindustrie.php"]
[null,null,null,null,null,"http://www.firmfocus.biz/NL/intelligence/bedrijfstak/sector-informatie-sanering-en-overig-afvalbeheer.php"]
[null,null,null,null,null,"http://www.firmfocus.biz/NL/intelligence/bedrijfstak/sector-informatie-scheepsbouw.php"]
[null,null,null,null,null,"http://www.firmfocus.biz/NL/intelligence/bedrijfstak/sector-informatie-schilders-en-glaszetbedrijven.php"]
[null,null,null,null,null,"http://www.firmfocus.biz/NL/intelligence/bedrijfstak/sector-informatie-schoonmaakbedrijven.php"]
[null,null,null,null,null,"http://www.firmfocus.biz/NL/intelligence/bedrijfstak/sector-informatie-schoonmaakbedrijven-hoveniers-ed.php"]
[null,null,null,null,null,"http://www.firmfocus.biz/NL/intelligence/bedrijfstak/sector-informatie-slachterijen-(geen-pluimvee).php"]
[null,null,null,null,null,"http://www.firmfocus.biz/NL/intelligence/bedrijfstak/sector-informatie-slachterijen-en-vleeswarenindustrie.php"]
[null,null,null,null,null,"http://www.firmfocus.biz/NL/intelligence/bedrijfstak/sector-informatie-sloopbedrijven-en-grondwerk.php"]
[null,null,null,null,null,"http://www.firmfocus.biz/NL/intelligence/bedrijfstak/sector-informatie-smederijen-profielwalserijen-ed.php"]
[null,null,null,null,null,"http://www.firmfocus.biz/NL/intelligence/bedrijfstak/sector-informatie-sociale-werkvoorziening.php"]
[null,null,null,null,null,"http://www.firmfocus.biz/NL/intelligence/bedrijfstak/sector-informatie-speelgoedwinkels.php"]
[null,null,null,null,null,"http://www.firmfocus.biz/NL/intelligence/bedrijfstak/sector-informatie-spijsolien-en-vettenindustrie-ed.php"]
[null,null,null,null,null,"http://www.firmfocus.biz/NL/intelligence/bedrijfstak/sector-informatie-stukadoorsbedrijven.php"]
[null,null,null,null,null,"http://www.firmfocus.biz/NL/intelligence/bedrijfstak/sector-informatie-supermarkten.php"]
[null,null,null,null,null,"http://www.firmfocus.biz/NL/intelligence/bedrijfstak/sector-informatie-supermarkten-en-warenhuizen.php"]
[null,null,null,null,null,"http://www.firmfocus.biz/NL/intelligence/bedrijfstak/sector-informatie-synthetische-vezelindustrie.php"]
[null,null,null,null,null,"http://www.firmfocus.biz/NL/intelligence/bedrijfstak/sector-informatie-tabaksindustrie.php"]
[null,null,null,null,null,"http://www.firmfocus.biz/NL/intelligence/bedrijfstak/sector-informatie-tankstations.php"]
[null,null,null,null,null,"http://www.firmfocus.biz/NL/intelligence/bedrijfstak/sector-informatie-telecommunicatie.php"]
[null,null,null,null,null,"http://www.firmfocus.biz/NL/intelligence/bedrijfstak/sector-informatie-textielindustrie.php"]
[null,null,null,null,null,"http://www.firmfocus.biz/NL/intelligence/bedrijfstak/sector-informatie-textiel-kleding-lederindustrie.php"]
[null,null,null,null,null,"http://www.firmfocus.biz/NL/intelligence/bedrijfstak/sector-informatie-timmerindustrie.php"]
[null,null,null,null,null,"http://www.firmfocus.biz/NL/intelligence/bedrijfstak/sector-informatie-traditionele-horeca.php"]
[null,null,null,null,null,"http://www.firmfocus.biz/NL/intelligence/bedrijfstak/sector-informatie-transportmiddelenindustrie.php"]
[null,null,null,null,null,"http://www.firmfocus.biz/NL/intelligence/bedrijfstak/sector-informatie-tussenpersonen-vrachtvervoer.php"]
[null,null,null,null,null,"http://www.firmfocus.biz/NL/intelligence/bedrijfstak/sector-informatie-uitgeverijen.php"]
[null,null,null,null,null,"http://www.firmfocus.biz/NL/intelligence/bedrijfstak/sector-informatie-uitgeverijen-filmradio-en-tv.php"]
[null,null,null,null,null,"http://www.firmfocus.biz/NL/intelligence/bedrijfstak/sector-informatie-uitvaartbranche.php"]
[null,null,null,null,null,"http://www.firmfocus.biz/NL/intelligence/bedrijfstak/sector-informatie-uitzendbureaus-en-arbeidsbemiddeling.php"]
[null,null,null,null,null,"http://www.firmfocus.biz/NL/intelligence/bedrijfstak/sector-informatie-uitzend-en-uitleenbureaus;-pools.php"]
[null,null,null,null,null,"http://www.firmfocus.biz/NL/intelligence/bedrijfstak/sector-informatie-verf-vernis-en-drukinktindustrie.php"]
[null,null,null,null,null,"http://www.firmfocus.biz/NL/intelligence/bedrijfstak/sector-informatie-verhuisvervoer.php"]
[null,null,null,null,null,"http://www.firmfocus.biz/NL/intelligence/bedrijfstak/sector-informatie-verhuur-en-lease-van-auto's.php"]
[null,null,null,null,null,"http://www.firmfocus.biz/NL/intelligence/bedrijfstak/sector-informatie-verhuur-en-overige-zakelijke-diensten.php"]
[null,null,null,null,null,"http://www.firmfocus.biz/NL/intelligence/bedrijfstak/sector-informatie-verhuur-van-consumentenartikelen.php"]
[null,null,null,null,null,"http://www.firmfocus.biz/NL/intelligence/bedrijfstak/sector-informatie-verhuur-van-roerende-goederen.php"]
[null,null,null,null,null,"http://www.firmfocus.biz/NL/intelligence/bedrijfstak/sector-informatie-vervoer-door-de-lucht.php"]
[null,null,null,null,null,"http://www.firmfocus.biz/NL/intelligence/bedrijfstak/sector-informatie-vervoer-en-opslag.php"]
[null,null,null,null,null,"http://www.firmfocus.biz/NL/intelligence/bedrijfstak/sector-informatie-vervoer-over-land.php"]
[null,null,null,null,null,"http://www.firmfocus.biz/NL/intelligence/bedrijfstak/sector-informatie-vervoer-over-water.php"]
[null,null,null,null,null,"http://www.firmfocus.biz/NL/intelligence/bedrijfstak/sector-informatie-vervoer-per-taxi.php"]
[null,null,null,null,null,"http://www.firmfocus.biz/NL/intelligence/bedrijfstak/sector-informatie-veterinaire-dienstverlening.php"]
[null,null,null,null,null,"http://www.firmfocus.biz/NL/intelligence/bedrijfstak/sector-informatie-visverwerkende-industrie.php"]
[null,null,null,null,null,"http://www.firmfocus.biz/NL/intelligence/bedrijfstak/sector-informatie-vleesverwerkende-industrie.php"]
[null,null,null,null,null,"http://www.firmfocus.biz/NL/intelligence/bedrijfstak/sector-informatie-voedings-genotmiddelenindustrie.php"]
[null,null,null,null,null,"http://www.firmfocus.biz/NL/intelligence/bedrijfstak/sector-informatie-voedingsmiddelenindustrie.php"]
[null,null,null,null,null,"http://www.firmfocus.biz/NL/intelligence/bedrijfstak/sector-informatie-voorbereiding-tot-recycling.php"]
[null,null,null,null,null,"http://www.firmfocus.biz/NL/intelligence/bedrijfstak/sector-informatie-warenhuizen-ed.php"]
[null,null,null,null,null,"http://www.firmfocus.biz/NL/intelligence/bedrijfstak/sector-informatie-wasserijen.php"]
[null,null,null,null,null,"http://www.firmfocus.biz/NL/intelligence/bedrijfstak/sector-informatie-waterbedrijven-en-afvalbeheer.php"]
[null,null,null,null,null,"http://www.firmfocus.biz/NL/intelligence/bedrijfstak/sector-informatie-waterleidingbedrijven.php"]
[null,null,null,null,null,"http://www.firmfocus.biz/NL/intelligence/bedrijfstak/sector-informatie-winkels-elektr-huishoudapparatuur.php"]
[null,null,null,null,null,"http://www.firmfocus.biz/NL/intelligence/bedrijfstak/sector-informatie-winkels-in-consumenten-elektronica.php"]
[null,null,null,null,null,"http://www.firmfocus.biz/NL/intelligence/bedrijfstak/sector-informatie-winkels-in-doe-het-zelfartikelen.php"]
[null,null,null,null,null,"http://www.firmfocus.biz/NL/intelligence/bedrijfstak/sector-informatie-winkels-in-kleding.php"]
[null,null,null,null,null,"http://www.firmfocus.biz/NL/intelligence/bedrijfstak/sector-informatie-winkels-in-overige-artikelen.php"]
[null,null,null,null,null,"http://www.firmfocus.biz/NL/intelligence/bedrijfstak/sector-informatie-winkels-in-overige-huishoudwaren.php"]
[null,null,null,null,null,"http://www.firmfocus.biz/NL/intelligence/bedrijfstak/sector-informatie-winkels-in-parfums-en-cosmetica.php"]
[null,null,null,null,null,"http://www.firmfocus.biz/NL/intelligence/bedrijfstak/sector-informatie-winkels-in-recreatie-artikelen.php"]
[null,null,null,null,null,"http://www.firmfocus.biz/NL/intelligence/bedrijfstak/sector-informatie-winkels-in-schoenen-en-lederwaren.php"]
[null,null,null,null,null,"http://www.firmfocus.biz/NL/intelligence/bedrijfstak/sector-informatie-winkels-in-stoffen-en-textiel.php"]
[null,null,null,null,null,"http://www.firmfocus.biz/NL/intelligence/bedrijfstak/sector-informatie-winkels-in-tapijt-en-gordijnen.php"]
[null,null,null,null,null,"http://www.firmfocus.biz/NL/intelligence/bedrijfstak/sector-informatie-winkels-in-voedingsmiddelen.php"]
[null,null,null,null,null,"http://www.firmfocus.biz/NL/intelligence/bedrijfstak/sector-informatie-winkels-in-vrijetijdsartikelen.php"]
[null,null,null,null,null,"http://www.firmfocus.biz/NL/intelligence/bedrijfstak/sector-informatie-winkels-in-wit-en-bruingoed.php"]
[null,null,null,null,null,"http://www.firmfocus.biz/NL/intelligence/bedrijfstak/sector-informatie-winkels-overige-huishoudartikelen.php"]
[null,null,null,null,null,"http://www.firmfocus.biz/NL/intelligence/bedrijfstak/sector-informatie-winning-van-aardolie-en-aardgas.php"]
[null,null,null,null,null,"http://www.firmfocus.biz/NL/intelligence/bedrijfstak/sector-informatie-zee-en-kustvaart.php"]
[null,null,null,null,null,"http://www.firmfocus.biz/NL/intelligence/bedrijfstak/sector-informatie-zetmeelindustrie.php"]
[null,null,null,null,null,"http://www.firmfocus.biz/NL/intelligence/bedrijfstak/sector-informatie-zuivelindustrie.php"]
[null,null,null,null,null,"http://www.firmfocus.biz/NL/intelligence/data/wisselkoersen-ecb.php"]
[null,null,null,null,null,"http://www.firmfocus.biz/NL/intelligence/intelligence-bedrijfstak-informatie.php"]
[null,null,null,null,null,"http://www.firmfocus.biz/NL/intelligence/intelligence-conjunctuur.php"]
[null,null,null,null,null,"http://www.firmfocus.biz/NL/intelligence/intelligence-conjunctuur-KW3-2011.php"]
[null,null,null,null,null,"http://www.firmfocus.biz/NL/intelligence/intelligence-conjunctuur-KW4-2011.php"]
[null,null,null,null,null,"http://www.firmfocus.biz/NL/intelligence/intelligence-ontwikkelingen-aankoopkanalen.php"]
[null,null,null,null,null,"http://www.firmfocus.biz/NL/intelligence/intelligence-ontwikkelingen-MKB.php"]
[null,null,null,null,null,"http://www.firmfocus.biz/NL/intelligence/intelligence-zzp-politiek.php"]
[null,null,null,null,null,"http://www.firmfocus.biz/NL/intelligence/sectorinformatie-advies.php"]
[null,null,null,null,null,"http://www.firmfocus.biz/NL/intelligence/sectorinformatie-bouwnijverheid.php"]
[null,null,null,null,null,"http://www.firmfocus.biz/NL/intelligence/sectorinformatie-detailhandel.php"]
[null,null,null,null,null,"http://www.firmfocus.biz/NL/intelligence/sectorinformatie-energie-water-afval.php"]
[null,null,null,null,null,"http://www.firmfocus.biz/NL/intelligence/sectorinformatie-groothandel.php"]
[null,null,null,null,null,"http://www.firmfocus.biz/NL/intelligence/sectorinformatie-horeca.php"]
[null,null,null,null,null,"http://www.firmfocus.biz/NL/intelligence/sectorinformatie-industrie-aardolie-chemie-farmacie.php"]
[null,null,null,null,null,"http://www.firmfocus.biz/NL/intelligence/sectorinformatie-industrie-hout-papier-bouwmaterialen.php"]
[null,null,null,null,null,"http://www.firmfocus.biz/NL/intelligence/sectorinformatie-industrie-overig.php"]
[null,null,null,null,null,"http://www.firmfocus.biz/NL/intelligence/sectorinformatie-industrie-textiel-kleding-leer-schoenen.php"]
[null,null,null,null,null,"http://www.firmfocus.biz/NL/intelligence/sectorinformatie-industrie-voedingsmiddelen.php"]
[null,null,null,null,null,"http://www.firmfocus.biz/NL/intelligence/sectorinformatie-informatie-communicatie.php"]
[null,null,null,null,null,"http://www.firmfocus.biz/NL/intelligence/sectorinformatie-reparatie-kappers-schoonheid-uitvaart.php"]
[null,null,null,null,null,"http://www.firmfocus.biz/NL/intelligence/sectorinformatie-verhuur-uitzend-schoonmaak-reisbranche.php"]
[null,null,null,null,null,"http://www.firmfocus.biz/NL/intelligence/sectorinformatie-vervoer-opslag.php"]
[null,null,null,null,null,"http://www.firmfocus.biz/NL/intelligence/sectorinformatie-winning-van-delfstoffen.php"]
[null,null,null,null,null,"http://www.firmfocus.biz/NL/marketing.php"]
[null,null,null,null,null,"http://www.firmfocus.biz/NL/marketing/marketing-facebook-pagina-mkb.php"]
[null,null,null,null,null,"http://www.firmfocus.biz/NL/marketing/marketing-mix-mkb.php"]
[null,null,null,null,null,"http://www.firmfocus.biz/NL/marketing/marketing-proces.php"]
[null,null,null,null,null,"http://www.firmfocus.biz/NL/marketing/marketing-promotie-tips-MKB.php"]
[null,null,null,null,null,"http://www.firmfocus.biz/NL/marketing/marketing-social-media-mkb.php"]
[null,null,null,null,null,"http://www.firmfocus.biz/NL/marketing/marketing-social-media-mkb-termen.php"]
[null,null,null,null,null,"http://www.firmfocus.biz/NL/marketing/marketing-toepassen-mkb.php"]
[null,null,null,null,null,"http://www.firmfocus.biz/NL/online/online-diensten-excel.php"]
[null,null,null,null,null,"http://www.firmfocus.biz/NL/online/online-diensten-office.php"]
[null,null,null,null,null,"http://www.firmfocus.biz/NL/online/online-diensten-ondernemingsplan.php"]
[null,null,null,null,null,"http://www.firmfocus.biz/NL/online-mkb-diensten.php"]
[null,null,null,null,null,"http://www.firmfocus.biz/NL/reviews/"]
[null,null,null,null,null,"http://www.firmfocus.biz/NL/reviews/tablets/tablet-acer-iconia-tab-a510-(32gb).php"]
[null,null,null,null,null,"http://www.firmfocus.biz/NL/reviews/tablets/tablet-acer-iconia-tab-w510-32gb-wifi.php"]
[null,null,null,null,null,"http://www.firmfocus.biz/NL/reviews/tablets/tablet-apple-ipad-2-16gb-wit.php"]
[null,null,null,null,null,"http://www.firmfocus.biz/NL/reviews/tablets/tablet-apple-ipad-2-16gb-zwart.php"]
[null,null,null,null,null,"http://www.firmfocus.biz/NL/reviews/tablets/tablet-apple-ipad-2-3g-16gb.php"]
[null,null,null,null,null,"http://www.firmfocus.biz/NL/reviews/tablets/tablet-apple-ipad-3-16gb-4g-wit.php"]
[null,null,null,null,null,"http://www.firmfocus.biz/NL/reviews/tablets/tablet-apple-ipad-3-16gb-4g-zwart.php"]
[null,null,null,null,null,"http://www.firmfocus.biz/NL/reviews/tablets/tablet-apple-ipad-3-16gb-wit.php"]
[null,null,null,null,null,"http://www.firmfocus.biz/NL/reviews/tablets/tablet-apple-ipad-3-16gb-zwart.php"]
[null,null,null,null,null,"http://www.firmfocus.biz/NL/reviews/tablets/tablet-apple-ipad-3-32gb-4g.php"]
[null,null,null,null,null,"http://www.firmfocus.biz/NL/reviews/tablets/tablet-apple-ipad-3-32gb-wit.php"]
[null,null,null,null,null,"http://www.firmfocus.biz/NL/reviews/tablets/tablet-apple-ipad-3-32gb-zwart.php"]
[null,null,null,null,null,"http://www.firmfocus.biz/NL/reviews/tablets/tablet-apple-ipad-3-64gb.php"]
[null,null,null,null,null,"http://www.firmfocus.biz/NL/reviews/tablets/tablet-apple-ipad-4-16gb-4g.php"]
[null,null,null,null,null,"http://www.firmfocus.biz/NL/reviews/tablets/tablet-apple-ipad-4-16gb-wifi-wit.php"]
[null,null,null,null,null,"http://www.firmfocus.biz/NL/reviews/tablets/tablet-apple-ipad-4-16gb-wifi-zwart.php"]
[null,null,null,null,null,"http://www.firmfocus.biz/NL/reviews/tablets/tablet-apple-ipad-4-32gb-4g.php"]
[null,null,null,null,null,"http://www.firmfocus.biz/NL/reviews/tablets/tablet-apple-ipad-4-32gb-wifi-wit.php"]
[null,null,null,null,null,"http://www.firmfocus.biz/NL/reviews/tablets/tablet-apple-ipad-4-32gb-wifi-zwart.php"]
[null,null,null,null,null,"http://www.firmfocus.biz/NL/reviews/tablets/tablet-apple-ipad-4-64gb-4g.php"]
[null,null,null,null,null,"http://www.firmfocus.biz/NL/reviews/tablets/tablet-apple-ipad-4-64gb-wifi.php"]
[null,null,null,null,null,"http://www.firmfocus.biz/NL/reviews/tablets/tablet-apple-ipad-mini-16gb-4g.php"]
[null,null,null,null,null,"http://www.firmfocus.biz/NL/reviews/tablets/tablet-apple-ipad-mini-16gb-wifi-wit.php"]
[null,null,null,null,null,"http://www.firmfocus.biz/NL/reviews/tablets/tablet-apple-ipad-mini-16gb-wifi-zwart.php"]
[null,null,null,null,null,"http://www.firmfocus.biz/NL/reviews/tablets/tablet-apple-ipad-mini-32gb-wifi.php"]
[null,null,null,null,null,"http://www.firmfocus.biz/NL/reviews/tablets/tablet-archos-70-internet-tablet-8gb.php"]
[null,null,null,null,null,"http://www.firmfocus.biz/NL/reviews/tablets/tablet-asus-eee-pad-transformer-tf101-16gb.php"]
[null,null,null,null,null,"http://www.firmfocus.biz/NL/reviews/tablets/tablet-asus-google-nexus-7-32gb.php"]
[null,null,null,null,null,"http://www.firmfocus.biz/NL/reviews/tablets/tablet-asus-transformer-pad-300t-wifi-16gb.php"]
[null,null,null,null,null,"http://www.firmfocus.biz/NL/reviews/tablets/tablet-asus-transformer-pad-infinity-64gb.php"]
[null,null,null,null,null,"http://www.firmfocus.biz/NL/reviews/tablets/tablet-asus-transformer-pad-tf300t-32gb.php"]
[null,null,null,null,null,"http://www.firmfocus.biz/NL/reviews/tablets/tablet-asus-transformer-pad-tf300t-32gb-ex-dock.php"]
[null,null,null,null,null,"http://www.firmfocus.biz/NL/reviews/tablets/tablet-asus-transformer-pad-tf300t-32gb-incl-dock.php"]
[null,null,null,null,null,"http://www.firmfocus.biz/NL/reviews/tablets/tablet-asus-vivo-tab-tf600t-64gb-excl-dock.php"]
[null,null,null,null,null,"http://www.firmfocus.biz/NL/reviews/tablets/tablet-asus-vivo-tab-tf600t-64gb-incl-dock.php"]
[null,null,null,null,null,"http://www.firmfocus.biz/NL/reviews/tablets/tablet-blackberry-playbook-64-gb.php"]
[null,null,null,null,null,"http://www.firmfocus.biz/NL/reviews/tablets/tablet-difrnce-dit1010-8gb.php"]
[null,null,null,null,null,"http://www.firmfocus.biz/NL/reviews/tablets/tablet-difrnce-dit9720-8gb.php"]
[null,null,null,null,null,"http://www.firmfocus.biz/NL/reviews/tablets/tablet-empire-electronix-m712-4gb-wifi.php"]
[null,null,null,null,null,"http://www.firmfocus.biz/NL/reviews/tablets/tablet-lenco-tab-1014-8gb-wifi.php"]
[null,null,null,null,null,"http://www.firmfocus.biz/NL/reviews/tablets/tablet-samsung-galaxy-note-10.1.php"]
[null,null,null,null,null,"http://www.firmfocus.biz/NL/reviews/tablets/tablet-samsung-galaxy-note-10.1-16gb-3g.php"]
[null,null,null,null,null,"http://www.firmfocus.biz/NL/reviews/tablets/tablet-samsung-galaxy-note-10.1-16gb-wifi.php"]
[null,null,null,null,null,"http://www.firmfocus.biz/NL/reviews/tablets/tablet-samsung-galaxy-note-10-16gb-3g.php"]
[null,null,null,null,null,"http://www.firmfocus.biz/NL/reviews/tablets/tablet-samsung-galaxy-tab-2-10.1-16gb-wifi.php"]
[null,null,null,null,null,"http://www.firmfocus.biz/NL/reviews/tablets/tablet-samsung-galaxy-tab-2-p5100-16gb.php"]
[null,null,null,null,null,"http://www.firmfocus.biz/NL/reviews/tablets/tablet-samsung-galaxy-tab-2-p5110-16-gb.php"]
[null,null,null,null,null,"http://www.firmfocus.biz/NL/reviews/tablets/tablet-samsung-galaxy-tab-2-p5110-16-gb-wit.php"]
[null,null,null,null,null,"http://www.firmfocus.biz/NL/reviews/tablets/tablet-samsung-galaxy-tab-2-p5110-16-gb-zwart.php"]
[null,null,null,null,null,"http://www.firmfocus.biz/NL/reviews/tablets/tablet-samsung-galaxy-tab-p3110.php"]
[null,null,null,null,null,"http://www.firmfocus.biz/NL/reviews/tablets/tablet-sony-tablet-p.php"]
[null,null,null,null,null,"http://www.firmfocus.biz/NL/reviews/tablets/tablet-sony-tablet-s.php"]
[null,null,null,null,null,"http://www.firmfocus.biz/NL/reviews/tablets/tablet-sony-xperia-tablet-s-16gb-wifi.php"]
[null,null,null,null,null,"http://www.firmfocus.biz/NL/reviews/tablets/tablet-yarvik-tab462euk.php"]
[null,null,null,null,null,"http://www.firmfocus.biz/NL/reviews/tablets/tablet-yarvik-tab464-gotab-xerios-10-inch.php"]
[null,null,null,null,null,"http://www.firmfocus.biz/NL/reviews/tablets/tablet-yarvik-tab9-200-xenta-9.7.php"]
[null,null,null,null,null,"http://www.firmfocus.biz/NL/reviews/tablets-vergelijking.php"]
[null,null,null,null,null,"http://www.firmfocus.biz/NL/starters.php"]
[null,null,null,null,null,"http://www.firmfocus.biz/NL/Starters/boeken/boeken-ondernemen.php"]
[null,null,null,null,null,"http://www.firmfocus.biz/NL/Starters/boeken/boek-ondernemen-de-beste-spreuken-van-en-over-ondernemers.php"]
[null,null,null,null,null,"http://www.firmfocus.biz/NL/Starters/boeken/boek-ondernemen-een-wereld-te-winnen.php"]
[null,null,null,null,null,"http://www.firmfocus.biz/NL/Starters/boeken/boek-ondernemen-eerste-hulp-bij-online-ondernemen.php"]
[null,null,null,null,null,"http://www.firmfocus.biz/NL/Starters/boeken/boek-ondernemen-het-ondernemingsplan.php"]
[null,null,null,null,null,"http://www.firmfocus.biz/NL/Starters/boeken/boek-ondernemen-ondernemingsplannen-voor-dummies.php"]
[null,null,null,null,null,"http://www.firmfocus.biz/NL/Starters/boeken/boek-ondernemen-van-ondernemer-naar-ondernemen.php"]
[null,null,null,null,null,"http://www.firmfocus.biz/NL/Starters/bplan_structuur.php"]
[null,null,null,null,null,"http://www.firmfocus.biz/NL/Starters/ondernemingsplan-sjabloon.php"]
[null,null,null,null,null,"http://www.firmfocus.biz/NL/Starters/overheidszaken-ondernemers-online.php"]
[null,null,null,null,null,"http://www.firmfocus.biz/NL/Starters/stappenplan/stappenplan-rechtsvorm-stamrechtbv.php"]
[null,null,null,null,null,"http://www.firmfocus.biz/NL/Starters/stappenplan-ondernemen.php"]
[null,null,null,null,null,"http://www.firmfocus.biz/NL/Starters/starters_inkomen_ZZP_flexwerkers.php"]
[null,null,null,null,null,"http://www.firmfocus.biz/NL/Starters/starters-actueel.php"]
[null,null,null,null,null,"http://www.firmfocus.biz/NL/Starters/starters-boeken-ondernemen.php"]
[null,null,null,null,null,"http://www.firmfocus.biz/NL/Starters/starters-handige-websites.php"]
[null,null,null,null,null,"http://www.firmfocus.biz/NL/Starters/starters-ondernemingsplan-1-persoonlijk.php"]
[null,null,null,null,null,"http://www.firmfocus.biz/NL/Starters/starters-ondernemingsplan-2-product.php"]
[null,null,null,null,null,"http://www.firmfocus.biz/NL/Starters/starters-ondernemingsplan-5-organisatie.php"]
[null,null,null,null,null,"http://www.firmfocus.biz/NL/Starters/starters-ondernemingsplan-6-financieel.php"]
[null,null,null,null,null,"http://www.firmfocus.biz/NL/Starters/starters-ondernemingsplan-7-juridisch.php"]
[null,null,null,null,null,"http://www.firmfocus.biz/NL/Starters/starters-uwv-wajong-werkt.php"]
[null,null,null,null,null,"http://www.firmfocus.biz/NL/Starters/subsidies-en-regelingen.php"]
[null,null,null,null,null,"http://www.firmfocus.biz/NL/Starters/voorbeeld_ondernemingsplan.php"]
[null,null,null,null,null,"http://www.firmfocus.biz/NL/strategie.php"]
[null,null,null,null,null,"http://www.firmfocus.biz/NL/Strategie/beoordelen-kiezen-strategische-alternatieven.php"]
[null,null,null,null,null,"http://www.firmfocus.biz/NL/Strategie/bepalen-proces-van-strategie-vorming.php"]
[null,null,null,null,null,"http://www.firmfocus.biz/NL/Strategie/business-swot-analyse-mkb.php"]
[null,null,null,null,null,"http://www.firmfocus.biz/NL/Strategie/confrontatie-interne-externe-strategische-analyse.php"]
[null,null,null,null,null,"http://www.firmfocus.biz/NL/Strategie/externe-analyse-bij-strategie-vorming.php"]
[null,null,null,null,null,"http://www.firmfocus.biz/NL/Strategie/interne-analyse-bij-strategie-vorming.php"]
[null,null,null,null,null,"http://www.firmfocus.biz/NL/Strategie/optimale-inrichting-onderneming.php"]
[null,null,null,null,null,"http://www.firmfocus.biz/NL/Strategie/stappen-strategie-vorming.php"]
[null,null,null,null,null,"http://www.firmfocus.biz/NL/vertalingen/"]
[null,null,null,null,null,"<!--createdwithFreeOnlineSitemapGeneratorwww.xml-sitemaps.com-->"]